Department Family,Entity,Date of Payment,Expense Type,Expense Area,Supplier,Transaction Number,Amount in Sterling,Expence Discription
ECGD,ECGD,16 Apr 24,Entertainment (Home & O/seas),Financial Crime Due Diligence,Clarity Travel Ltd frmly Mawasem Ltd,         238,-22.64,Business Travel 
ECGD,ECGD,16 Apr 24,Entertainment (Home & O/seas),Financial Crime Due Diligence,Clarity Travel Ltd frmly Mawasem Ltd,         238,"1,252.08",Business Travel 
ECGD,ECGD,16 Apr 24,External Meeting Rooms,HRD,Clarity Travel Ltd frmly Mawasem Ltd,         238,436.20,External Meeting Rooms
ECGD,ECGD,16 Apr 24,External Meeting Rooms,SPoCC,Clarity Travel Ltd frmly Mawasem Ltd,         238,-22.64,External Meeting Rooms
ECGD,ECGD,16 Apr 24,External Meeting Rooms,SPoCC,Clarity Travel Ltd frmly Mawasem Ltd,         238,"1,208.85",External Meeting Rooms
ECGD,ECGD,16 Apr 24,Home Travel /Subsistence,Business Group _ Main,Clarity Travel Ltd frmly Mawasem Ltd,         238,-47.70,Business Travel 
ECGD,ECGD,16 Apr 24,Home Travel /Subsistence,Business Group _ Main,Clarity Travel Ltd frmly Mawasem Ltd,         238,1.00,Business Travel 
ECGD,ECGD,16 Apr 24,Home Travel /Subsistence,Business Group _ Main,Clarity Travel Ltd frmly Mawasem Ltd,         238,1.00,Business Travel 
ECGD,ECGD,16 Apr 24,Home Travel /Subsistence,Business Group _ Main,Clarity Travel Ltd frmly Mawasem Ltd,         238,1.00,Business Travel 
ECGD,ECGD,16 Apr 24,Home Travel /Subsistence,Business Group _ Main,Clarity Travel Ltd frmly Mawasem Ltd,         238,1.00,Business Travel 
ECGD,ECGD,16 Apr 24,Home Travel /Subsistence,Business Group _ Main,Clarity Travel Ltd frmly Mawasem Ltd,         238,1.00,Business Travel 
ECGD,ECGD,16 Apr 24,Home Travel /Subsistence,Business Group _ Main,Clarity Travel Ltd frmly Mawasem Ltd,         238,1.00,Business Travel 
ECGD,ECGD,16 Apr 24,Home Travel /Subsistence,Business Group _ Main,Clarity Travel Ltd frmly Mawasem Ltd,         238,1.00,Business Travel 
ECGD,ECGD,16 Apr 24,Home Travel /Subsistence,Business Group _ Main,Clarity Travel Ltd frmly Mawasem Ltd,         238,1.00,Business Travel 
ECGD,ECGD,16 Apr 24,Home Travel /Subsistence,Business Group _ Main,Clarity Travel Ltd frmly Mawasem Ltd,         238,1.00,Business Travel 
ECGD,ECGD,16 Apr 24,Home Travel /Subsistence,Business Group _ Main,Clarity Travel Ltd frmly Mawasem Ltd,         238,1.00,Business Travel 
ECGD,ECGD,16 Apr 24,Home Travel /Subsistence,Business Group _ Main,Clarity Travel Ltd frmly Mawasem Ltd,         238,1.00,Business Travel 
ECGD,ECGD,16 Apr 24,Home Travel /Subsistence,Business Group _ Main,Clarity Travel Ltd frmly Mawasem Ltd,         238,1.00,Business Travel 
ECGD,ECGD,16 Apr 24,Home Travel /Subsistence,Business Group _ Main,Clarity Travel Ltd frmly Mawasem Ltd,         238,1.00,Business Travel 
ECGD,ECGD,16 Apr 24,Home Travel /Subsistence,Business Group _ Main,Clarity Travel Ltd frmly Mawasem Ltd,         238,1.00,Business Travel 
ECGD,ECGD,16 Apr 24,Home Travel /Subsistence,Business Group _ Main,Clarity Travel Ltd frmly Mawasem Ltd,         238,1.00,Business Travel 
ECGD,ECGD,16 Apr 24,Home Travel /Subsistence,Business Group _ Main,Clarity Travel Ltd frmly Mawasem Ltd,         238,1.00,Business Travel 
ECGD,ECGD,16 Apr 24,Home Travel /Subsistence,Business Group _ Main,Clarity Travel Ltd frmly Mawasem Ltd,         238,1.00,Business Travel 
ECGD,ECGD,16 Apr 24,Home Travel /Subsistence,Business Group _ Main,Clarity Travel Ltd frmly Mawasem Ltd,         238,1.00,Business Travel 
ECGD,ECGD,16 Apr 24,Home Travel /Subsistence,Business Group _ Main,Clarity Travel Ltd frmly Mawasem Ltd,         238,1.00,Business Travel 
ECGD,ECGD,16 Apr 24,Home Travel /Subsistence,Business Group _ Main,Clarity Travel Ltd frmly Mawasem Ltd,         238,1.00,Business Travel 
ECGD,ECGD,16 Apr 24,Home Travel /Subsistence,Business Group _ Main,Clarity Travel Ltd frmly Mawasem Ltd,         238,1.00,Business Travel 
ECGD,ECGD,16 Apr 24,Home Travel /Subsistence,Business Group _ Main,Clarity Travel Ltd frmly Mawasem Ltd,         238,1.00,Business Travel 
ECGD,ECGD,16 Apr 24,Home Travel /Subsistence,Business Group _ Main,Clarity Travel Ltd frmly Mawasem Ltd,         238,1.00,Business Travel 
ECGD,ECGD,16 Apr 24,Home Travel /Subsistence,Business Group _ Main,Clarity Travel Ltd frmly Mawasem Ltd,         238,1.00,Business Travel 
ECGD,ECGD,16 Apr 24,Home Travel /Subsistence,Business Group _ Main,Clarity Travel Ltd frmly Mawasem Ltd,         238,1.00,Business Travel 
ECGD,ECGD,16 Apr 24,Home Travel /Subsistence,Business Group _ Main,Clarity Travel Ltd frmly Mawasem Ltd,         238,1.00,Business Travel 
ECGD,ECGD,16 Apr 24,Home Travel /Subsistence,Business Group _ Main,Clarity Travel Ltd frmly Mawasem Ltd,         238,1.00,Business Travel 
ECGD,ECGD,16 Apr 24,Home Travel /Subsistence,Business Group _ Main,Clarity Travel Ltd frmly Mawasem Ltd,         238,1.00,Business Travel 
ECGD,ECGD,16 Apr 24,Home Travel /Subsistence,Business Group _ Main,Clarity Travel Ltd frmly Mawasem Ltd,         238,1.00,Business Travel 
ECGD,ECGD,16 Apr 24,Home Travel /Subsistence,Business Group _ Main,Clarity Travel Ltd frmly Mawasem Ltd,         238,1.00,Business Travel 
ECGD,ECGD,16 Apr 24,Home Travel /Subsistence,Business Group _ Main,Clarity Travel Ltd frmly Mawasem Ltd,         238,2.00,Business Travel 
ECGD,ECGD,16 Apr 24,Home Travel /Subsistence,Business Group _ Main,Clarity Travel Ltd frmly Mawasem Ltd,         238,2.00,Business Travel 
ECGD,ECGD,16 Apr 24,Home Travel /Subsistence,Business Group _ Main,Clarity Travel Ltd frmly Mawasem Ltd,         238,2.00,Business Travel 
ECGD,ECGD,16 Apr 24,Home Travel /Subsistence,Business Group _ Main,Clarity Travel Ltd frmly Mawasem Ltd,         238,2.00,Business Travel 
ECGD,ECGD,16 Apr 24,Home Travel /Subsistence,Business Group _ Main,Clarity Travel Ltd frmly Mawasem Ltd,         238,2.00,Business Travel 
ECGD,ECGD,16 Apr 24,Home Travel /Subsistence,Business Group _ Main,Clarity Travel Ltd frmly Mawasem Ltd,         238,2.00,Business Travel 
ECGD,ECGD,16 Apr 24,Home Travel /Subsistence,Business Group _ Main,Clarity Travel Ltd frmly Mawasem Ltd,         238,2.00,Business Travel 
ECGD,ECGD,16 Apr 24,Home Travel /Subsistence,Business Group _ Main,Clarity Travel Ltd frmly Mawasem Ltd,         238,3.00,Business Travel 
ECGD,ECGD,16 Apr 24,Home Travel /Subsistence,Business Group _ Main,Clarity Travel Ltd frmly Mawasem Ltd,         238,4.00,Business Travel 
ECGD,ECGD,16 Apr 24,Home Travel /Subsistence,Business Group _ Main,Clarity Travel Ltd frmly Mawasem Ltd,         238,4.00,Business Travel 
ECGD,ECGD,16 Apr 24,Home Travel /Subsistence,Business Group _ Main,Clarity Travel Ltd frmly Mawasem Ltd,         238,4.00,Business Travel 
ECGD,ECGD,16 Apr 24,Home Travel /Subsistence,Business Group _ Main,Clarity Travel Ltd frmly Mawasem Ltd,         238,5.00,Business Travel 
ECGD,ECGD,16 Apr 24,Home Travel /Subsistence,Business Group _ Main,Clarity Travel Ltd frmly Mawasem Ltd,         238,5.00,Business Travel 
ECGD,ECGD,16 Apr 24,Home Travel /Subsistence,Business Group _ Main,Clarity Travel Ltd frmly Mawasem Ltd,         238,6.00,Business Travel 
ECGD,ECGD,16 Apr 24,Home Travel /Subsistence,Business Group _ Main,Clarity Travel Ltd frmly Mawasem Ltd,         238,7.00,Business Travel 
ECGD,ECGD,16 Apr 24,Home Travel /Subsistence,Business Group _ Main,Clarity Travel Ltd frmly Mawasem Ltd,         238,9.00,Business Travel 
ECGD,ECGD,16 Apr 24,Home Travel /Subsistence,Business Group _ Main,Clarity Travel Ltd frmly Mawasem Ltd,         238,19.00,Business Travel 
ECGD,ECGD,16 Apr 24,Home Travel /Subsistence,Business Group _ Main,Clarity Travel Ltd frmly Mawasem Ltd,         238,24.00,Business Travel 
ECGD,ECGD,16 Apr 24,Home Travel /Subsistence,Business Group _ Main,Clarity Travel Ltd frmly Mawasem Ltd,         238,26.30,Business Travel 
ECGD,ECGD,16 Apr 24,Home Travel /Subsistence,Business Group _ Main,Clarity Travel Ltd frmly Mawasem Ltd,         238,27.30,Business Travel 
ECGD,ECGD,16 Apr 24,Home Travel /Subsistence,Business Group _ Main,Clarity Travel Ltd frmly Mawasem Ltd,         238,30.10,Business Travel 
ECGD,ECGD,16 Apr 24,Home Travel /Subsistence,Business Group _ Main,Clarity Travel Ltd frmly Mawasem Ltd,         238,30.10,Business Travel 
ECGD,ECGD,16 Apr 24,Home Travel /Subsistence,Business Group _ Main,Clarity Travel Ltd frmly Mawasem Ltd,         238,34.00,Business Travel 
ECGD,ECGD,16 Apr 24,Home Travel /Subsistence,Business Group _ Main,Clarity Travel Ltd frmly Mawasem Ltd,         238,34.00,Business Travel 
ECGD,ECGD,16 Apr 24,Home Travel /Subsistence,Business Group _ Main,Clarity Travel Ltd frmly Mawasem Ltd,         238,38.40,Business Travel 
ECGD,ECGD,16 Apr 24,Home Travel /Subsistence,Business Group _ Main,Clarity Travel Ltd frmly Mawasem Ltd,         238,38.50,Business Travel 
ECGD,ECGD,16 Apr 24,Home Travel /Subsistence,Business Group _ Main,Clarity Travel Ltd frmly Mawasem Ltd,         238,44.00,Business Travel 
ECGD,ECGD,16 Apr 24,Home Travel /Subsistence,Business Group _ Main,Clarity Travel Ltd frmly Mawasem Ltd,         238,44.00,Business Travel 
ECGD,ECGD,16 Apr 24,Home Travel /Subsistence,Business Group _ Main,Clarity Travel Ltd frmly Mawasem Ltd,         238,46.00,Business Travel 
ECGD,ECGD,16 Apr 24,Home Travel /Subsistence,Business Group _ Main,Clarity Travel Ltd frmly Mawasem Ltd,         238,46.00,Business Travel 
ECGD,ECGD,16 Apr 24,Home Travel /Subsistence,Business Group _ Main,Clarity Travel Ltd frmly Mawasem Ltd,         238,47.00,Business Travel 
ECGD,ECGD,16 Apr 24,Home Travel /Subsistence,Business Group _ Main,Clarity Travel Ltd frmly Mawasem Ltd,         238,47.00,Business Travel 
ECGD,ECGD,16 Apr 24,Home Travel /Subsistence,Business Group _ Main,Clarity Travel Ltd frmly Mawasem Ltd,         238,49.90,Business Travel 
ECGD,ECGD,16 Apr 24,Home Travel /Subsistence,Business Group _ Main,Clarity Travel Ltd frmly Mawasem Ltd,         238,49.90,Business Travel 
ECGD,ECGD,16 Apr 24,Home Travel /Subsistence,Business Group _ Main,Clarity Travel Ltd frmly Mawasem Ltd,         238,65.40,Business Travel 
ECGD,ECGD,16 Apr 24,Home Travel /Subsistence,Business Group _ Main,Clarity Travel Ltd frmly Mawasem Ltd,         238,65.40,Business Travel 
ECGD,ECGD,16 Apr 24,Home Travel /Subsistence,Business Group _ Main,Clarity Travel Ltd frmly Mawasem Ltd,         238,73.10,Business Travel 
ECGD,ECGD,16 Apr 24,Home Travel /Subsistence,Business Group _ Main,Clarity Travel Ltd frmly Mawasem Ltd,         238,76.67,Business Travel 
ECGD,ECGD,16 Apr 24,Home Travel /Subsistence,Business Group _ Main,Clarity Travel Ltd frmly Mawasem Ltd,         238,84.20,Business Travel 
ECGD,ECGD,16 Apr 24,Home Travel /Subsistence,Business Group _ Main,Clarity Travel Ltd frmly Mawasem Ltd,         238,124.00,Business Travel 
ECGD,ECGD,16 Apr 24,Home Travel /Subsistence,Business Group _ Main,Clarity Travel Ltd frmly Mawasem Ltd,         238,124.00,Business Travel 
ECGD,ECGD,16 Apr 24,Home Travel /Subsistence,Business Group _ Main,Clarity Travel Ltd frmly Mawasem Ltd,         238,124.00,Business Travel 
ECGD,ECGD,16 Apr 24,Home Travel /Subsistence,Business Group _ Main,Clarity Travel Ltd frmly Mawasem Ltd,         238,124.00,Business Travel 
ECGD,ECGD,16 Apr 24,Home Travel /Subsistence,Business Group _ Main,Clarity Travel Ltd frmly Mawasem Ltd,         238,181.80,Business Travel 
ECGD,ECGD,16 Apr 24,Home Travel /Subsistence,Business Group _ Main,Clarity Travel Ltd frmly Mawasem Ltd,         238,182.50,Business Travel 
ECGD,ECGD,16 Apr 24,Home Travel /Subsistence,Business Group _ Main,Clarity Travel Ltd frmly Mawasem Ltd,         238,182.50,Business Travel 
ECGD,ECGD,16 Apr 24,Home Travel /Subsistence,Business Group _ Main,Clarity Travel Ltd frmly Mawasem Ltd,         238,187.00,Business Travel 
ECGD,ECGD,16 Apr 24,Home Travel /Subsistence,Business Group _ Main,Clarity Travel Ltd frmly Mawasem Ltd,         238,199.99,Business Travel 
ECGD,ECGD,16 Apr 24,Home Travel /Subsistence,Business Group _ Main,Clarity Travel Ltd frmly Mawasem Ltd,         238,203.33,Business Travel 
ECGD,ECGD,16 Apr 24,Home Travel /Subsistence,Business Group _ Main,Clarity Travel Ltd frmly Mawasem Ltd,         238,210.00,Business Travel 
ECGD,ECGD,16 Apr 24,Home Travel /Subsistence,Business Group _ Main,Clarity Travel Ltd frmly Mawasem Ltd,         238,215.00,Business Travel 
ECGD,ECGD,16 Apr 24,Home Travel /Subsistence,Business Group _ Main,Clarity Travel Ltd frmly Mawasem Ltd,         238,230.00,Business Travel 
ECGD,ECGD,16 Apr 24,Home Travel /Subsistence,Business Group _ Main,Clarity Travel Ltd frmly Mawasem Ltd,         238,245.30,Business Travel 
ECGD,ECGD,16 Apr 24,Home Travel /Subsistence,Business Group _ Main,Clarity Travel Ltd frmly Mawasem Ltd,         238,333.15,Business Travel 
ECGD,ECGD,16 Apr 24,Home Travel /Subsistence,Business Group _ Main,Clarity Travel Ltd frmly Mawasem Ltd,         238,387.25,Business Travel 
ECGD,ECGD,16 Apr 24,Home Travel /Subsistence,Business Group _ Main,Clarity Travel Ltd frmly Mawasem Ltd,         238,499.60,Business Travel 
ECGD,ECGD,16 Apr 24,Home Travel /Subsistence,Business Group _ Main,Clarity Travel Ltd frmly Mawasem Ltd,         238,501.84,Business Travel 
ECGD,ECGD,16 Apr 24,Home Travel /Subsistence,Business Group _ Main,Clarity Travel Ltd frmly Mawasem Ltd,         238,661.17,Business Travel 
ECGD,ECGD,16 Apr 24,Home Travel /Subsistence,Business Group _ Main,Clarity Travel Ltd frmly Mawasem Ltd,         238,"1,001.44",Business Travel 
ECGD,ECGD,16 Apr 24,Home Travel /Subsistence,Digital and Data Division,Clarity Travel Ltd frmly Mawasem Ltd,         238,1.00,Business Travel 
ECGD,ECGD,16 Apr 24,Home Travel /Subsistence,Digital and Data Division,Clarity Travel Ltd frmly Mawasem Ltd,         238,1.00,Business Travel 
ECGD,ECGD,16 Apr 24,Home Travel /Subsistence,Digital and Data Division,Clarity Travel Ltd frmly Mawasem Ltd,         238,1.00,Business Travel 
ECGD,ECGD,16 Apr 24,Home Travel /Subsistence,Digital and Data Division,Clarity Travel Ltd frmly Mawasem Ltd,         238,1.00,Business Travel 
ECGD,ECGD,16 Apr 24,Home Travel /Subsistence,Digital and Data Division,Clarity Travel Ltd frmly Mawasem Ltd,         238,20.50,Business Travel 
ECGD,ECGD,16 Apr 24,Home Travel /Subsistence,Digital and Data Division,Clarity Travel Ltd frmly Mawasem Ltd,         238,56.80,Business Travel 
ECGD,ECGD,16 Apr 24,Home Travel /Subsistence,Digital and Data Division,Clarity Travel Ltd frmly Mawasem Ltd,         238,63.90,Business Travel 
ECGD,ECGD,16 Apr 24,Home Travel /Subsistence,Digital and Data Division,Clarity Travel Ltd frmly Mawasem Ltd,         238,165.87,Business Travel 
ECGD,ECGD,16 Apr 24,Home Travel /Subsistence,"Digital, Data and Technology (DDaT)",Clarity Travel Ltd frmly Mawasem Ltd,         238,1.00,Business Travel 
ECGD,ECGD,16 Apr 24,Home Travel /Subsistence,"Digital, Data and Technology (DDaT)",Clarity Travel Ltd frmly Mawasem Ltd,         238,1.00,Business Travel 
ECGD,ECGD,16 Apr 24,Home Travel /Subsistence,"Digital, Data and Technology (DDaT)",Clarity Travel Ltd frmly Mawasem Ltd,         238,1.00,Business Travel 
ECGD,ECGD,16 Apr 24,Home Travel /Subsistence,"Digital, Data and Technology (DDaT)",Clarity Travel Ltd frmly Mawasem Ltd,         238,1.00,Business Travel 
ECGD,ECGD,16 Apr 24,Home Travel /Subsistence,"Digital, Data and Technology (DDaT)",Clarity Travel Ltd frmly Mawasem Ltd,         238,1.00,Business Travel 
ECGD,ECGD,16 Apr 24,Home Travel /Subsistence,"Digital, Data and Technology (DDaT)",Clarity Travel Ltd frmly Mawasem Ltd,         238,1.00,Business Travel 
ECGD,ECGD,16 Apr 24,Home Travel /Subsistence,"Digital, Data and Technology (DDaT)",Clarity Travel Ltd frmly Mawasem Ltd,         238,1.00,Business Travel 
ECGD,ECGD,16 Apr 24,Home Travel /Subsistence,"Digital, Data and Technology (DDaT)",Clarity Travel Ltd frmly Mawasem Ltd,         238,1.00,Business Travel 
ECGD,ECGD,16 Apr 24,Home Travel /Subsistence,"Digital, Data and Technology (DDaT)",Clarity Travel Ltd frmly Mawasem Ltd,         238,1.00,Business Travel 
ECGD,ECGD,16 Apr 24,Home Travel /Subsistence,"Digital, Data and Technology (DDaT)",Clarity Travel Ltd frmly Mawasem Ltd,         238,1.00,Business Travel 
ECGD,ECGD,16 Apr 24,Home Travel /Subsistence,"Digital, Data and Technology (DDaT)",Clarity Travel Ltd frmly Mawasem Ltd,         238,2.00,Business Travel 
ECGD,ECGD,16 Apr 24,Home Travel /Subsistence,"Digital, Data and Technology (DDaT)",Clarity Travel Ltd frmly Mawasem Ltd,         238,2.00,Business Travel 
ECGD,ECGD,16 Apr 24,Home Travel /Subsistence,"Digital, Data and Technology (DDaT)",Clarity Travel Ltd frmly Mawasem Ltd,         238,2.00,Business Travel 
ECGD,ECGD,16 Apr 24,Home Travel /Subsistence,"Digital, Data and Technology (DDaT)",Clarity Travel Ltd frmly Mawasem Ltd,         238,9.00,Business Travel 
ECGD,ECGD,16 Apr 24,Home Travel /Subsistence,"Digital, Data and Technology (DDaT)",Clarity Travel Ltd frmly Mawasem Ltd,         238,9.00,Business Travel 
ECGD,ECGD,16 Apr 24,Home Travel /Subsistence,"Digital, Data and Technology (DDaT)",Clarity Travel Ltd frmly Mawasem Ltd,         238,9.00,Business Travel 
ECGD,ECGD,16 Apr 24,Home Travel /Subsistence,"Digital, Data and Technology (DDaT)",Clarity Travel Ltd frmly Mawasem Ltd,         238,9.00,Business Travel 
ECGD,ECGD,16 Apr 24,Home Travel /Subsistence,"Digital, Data and Technology (DDaT)",Clarity Travel Ltd frmly Mawasem Ltd,         238,9.00,Business Travel 
ECGD,ECGD,16 Apr 24,Home Travel /Subsistence,"Digital, Data and Technology (DDaT)",Clarity Travel Ltd frmly Mawasem Ltd,         238,21.00,Business Travel 
ECGD,ECGD,16 Apr 24,Home Travel /Subsistence,"Digital, Data and Technology (DDaT)",Clarity Travel Ltd frmly Mawasem Ltd,         238,21.00,Business Travel 
ECGD,ECGD,16 Apr 24,Home Travel /Subsistence,"Digital, Data and Technology (DDaT)",Clarity Travel Ltd frmly Mawasem Ltd,         238,21.00,Business Travel 
ECGD,ECGD,16 Apr 24,Home Travel /Subsistence,"Digital, Data and Technology (DDaT)",Clarity Travel Ltd frmly Mawasem Ltd,         238,21.00,Business Travel 
ECGD,ECGD,16 Apr 24,Home Travel /Subsistence,"Digital, Data and Technology (DDaT)",Clarity Travel Ltd frmly Mawasem Ltd,         238,21.00,Business Travel 
ECGD,ECGD,16 Apr 24,Home Travel /Subsistence,"Digital, Data and Technology (DDaT)",Clarity Travel Ltd frmly Mawasem Ltd,         238,31.00,Business Travel 
ECGD,ECGD,16 Apr 24,Home Travel /Subsistence,"Digital, Data and Technology (DDaT)",Clarity Travel Ltd frmly Mawasem Ltd,         238,31.00,Business Travel 
ECGD,ECGD,16 Apr 24,Home Travel /Subsistence,"Digital, Data and Technology (DDaT)",Clarity Travel Ltd frmly Mawasem Ltd,         238,31.00,Business Travel 
ECGD,ECGD,16 Apr 24,Home Travel /Subsistence,HRD,Clarity Travel Ltd frmly Mawasem Ltd,         238,1.00,Business Travel 
ECGD,ECGD,16 Apr 24,Home Travel /Subsistence,HRD,Clarity Travel Ltd frmly Mawasem Ltd,         238,2.00,Business Travel 
ECGD,ECGD,16 Apr 24,Home Travel /Subsistence,HRD,Clarity Travel Ltd frmly Mawasem Ltd,         238,10.40,Business Travel 
ECGD,ECGD,16 Apr 24,Home Travel /Subsistence,HRD,Clarity Travel Ltd frmly Mawasem Ltd,         238,49.40,Business Travel 
ECGD,ECGD,16 Apr 24,Home Travel /Subsistence,LD,Clarity Travel Ltd frmly Mawasem Ltd,         238,1.00,Business Travel 
ECGD,ECGD,16 Apr 24,Home Travel /Subsistence,LD,Clarity Travel Ltd frmly Mawasem Ltd,         238,1.00,Business Travel 
ECGD,ECGD,16 Apr 24,Home Travel /Subsistence,LD,Clarity Travel Ltd frmly Mawasem Ltd,         238,2.00,Business Travel 
ECGD,ECGD,16 Apr 24,Home Travel /Subsistence,LD,Clarity Travel Ltd frmly Mawasem Ltd,         238,47.00,Business Travel 
ECGD,ECGD,16 Apr 24,Home Travel /Subsistence,LD,Clarity Travel Ltd frmly Mawasem Ltd,         238,54.90,Business Travel 
ECGD,ECGD,16 Apr 24,Home Travel /Subsistence,LD,Clarity Travel Ltd frmly Mawasem Ltd,         238,136.00,Business Travel 
ECGD,ECGD,16 Apr 24,Home Travel /Subsistence,OCCMC,Clarity Travel Ltd frmly Mawasem Ltd,         238,1.00,Business Travel 
ECGD,ECGD,16 Apr 24,Home Travel /Subsistence,OCCMC,Clarity Travel Ltd frmly Mawasem Ltd,         238,2.00,Business Travel 
ECGD,ECGD,16 Apr 24,Home Travel /Subsistence,OCCMC,Clarity Travel Ltd frmly Mawasem Ltd,         238,2.00,Business Travel 
ECGD,ECGD,16 Apr 24,Home Travel /Subsistence,OCCMC,Clarity Travel Ltd frmly Mawasem Ltd,         238,2.00,Business Travel 
ECGD,ECGD,16 Apr 24,Home Travel /Subsistence,OCCMC,Clarity Travel Ltd frmly Mawasem Ltd,         238,2.00,Business Travel 
ECGD,ECGD,16 Apr 24,Home Travel /Subsistence,OCCMC,Clarity Travel Ltd frmly Mawasem Ltd,         238,2.00,Business Travel 
ECGD,ECGD,16 Apr 24,Home Travel /Subsistence,OCCMC,Clarity Travel Ltd frmly Mawasem Ltd,         238,2.00,Business Travel 
ECGD,ECGD,16 Apr 24,Home Travel /Subsistence,OCCMC,Clarity Travel Ltd frmly Mawasem Ltd,         238,2.00,Business Travel 
ECGD,ECGD,16 Apr 24,Home Travel /Subsistence,OCCMC,Clarity Travel Ltd frmly Mawasem Ltd,         238,42.00,Business Travel 
ECGD,ECGD,16 Apr 24,Home Travel /Subsistence,OCCMC,Clarity Travel Ltd frmly Mawasem Ltd,         238,58.20,Business Travel 
ECGD,ECGD,16 Apr 24,Home Travel /Subsistence,OCCMC,Clarity Travel Ltd frmly Mawasem Ltd,         238,92.50,Business Travel 
ECGD,ECGD,16 Apr 24,Home Travel /Subsistence,OCCMC,Clarity Travel Ltd frmly Mawasem Ltd,         238,136.00,Business Travel 
ECGD,ECGD,16 Apr 24,Home Travel /Subsistence,OCCMC,Clarity Travel Ltd frmly Mawasem Ltd,         238,136.00,Business Travel 
ECGD,ECGD,16 Apr 24,Home Travel /Subsistence,OCCMC,Clarity Travel Ltd frmly Mawasem Ltd,         238,140.50,Business Travel 
ECGD,ECGD,16 Apr 24,Home Travel /Subsistence,OCCMC,Clarity Travel Ltd frmly Mawasem Ltd,         238,150.03,Business Travel 
ECGD,ECGD,16 Apr 24,Home Travel /Subsistence,OCCMC,Clarity Travel Ltd frmly Mawasem Ltd,         238,168.00,Business Travel 
ECGD,ECGD,16 Apr 24,Home Travel /Subsistence,Portfolio Management Division,Clarity Travel Ltd frmly Mawasem Ltd,         238,2.00,Business Travel 
ECGD,ECGD,16 Apr 24,Home Travel /Subsistence,RCR,Clarity Travel Ltd frmly Mawasem Ltd,         238,2.00,Business Travel  
ECGD,ECGD,16 Apr 24,Home Travel /Subsistence,Portfolio Management Division,Clarity Travel Ltd frmly Mawasem Ltd,         238,2.00,Business Travel 
ECGD,ECGD,16 Apr 24,Home Travel /Subsistence,Portfolio Management Division,Clarity Travel Ltd frmly Mawasem Ltd,         238,2.00,Business Travel 
ECGD,ECGD,16 Apr 24,Home Travel /Subsistence,Portfolio Management Division,Clarity Travel Ltd frmly Mawasem Ltd,         238,2.00,Business Travel 
ECGD,ECGD,16 Apr 24,Home Travel /Subsistence,Portfolio Management Division,Clarity Travel Ltd frmly Mawasem Ltd,         238,2.00,Business Travel 
ECGD,ECGD,16 Apr 24,Home Travel /Subsistence,Portfolio Management Division,Clarity Travel Ltd frmly Mawasem Ltd,         238,2.00,Business Travel 
ECGD,ECGD,16 Apr 24,Home Travel /Subsistence,Portfolio Management Division,Clarity Travel Ltd frmly Mawasem Ltd,         238,2.00,Business Travel 
ECGD,ECGD,16 Apr 24,Home Travel /Subsistence,Portfolio Management Division,Clarity Travel Ltd frmly Mawasem Ltd,         238,109.75,Business Travel 
ECGD,ECGD,16 Apr 24,Home Travel /Subsistence,RCR,Clarity Travel Ltd frmly Mawasem Ltd,         238,109.75,Business Travel 
ECGD,ECGD,16 Apr 24,Home Travel /Subsistence,Portfolio Management Division,Clarity Travel Ltd frmly Mawasem Ltd,         238,109.75,Business Travel 
ECGD,ECGD,16 Apr 24,Home Travel /Subsistence,Portfolio Management Division,Clarity Travel Ltd frmly Mawasem Ltd,         238,109.75,Business Travel 
ECGD,ECGD,16 Apr 24,Home Travel /Subsistence,Portfolio Management Division,Clarity Travel Ltd frmly Mawasem Ltd,         238,109.75,Business Travel 
ECGD,ECGD,16 Apr 24,Home Travel /Subsistence,Portfolio Management Division,Clarity Travel Ltd frmly Mawasem Ltd,         238,109.75,Business Travel 
ECGD,ECGD,16 Apr 24,Home Travel /Subsistence,Portfolio Management Division,Clarity Travel Ltd frmly Mawasem Ltd,         238,109.75,Business Travel 
ECGD,ECGD,16 Apr 24,Home Travel /Subsistence,Portfolio Management Division,Clarity Travel Ltd frmly Mawasem Ltd,         238,109.75,Business Travel 
ECGD,ECGD,16 Apr 24,Home Travel /Subsistence,Pricing & Risk Analytics Division,Clarity Travel Ltd frmly Mawasem Ltd,         238,1.00,Business Travel 
ECGD,ECGD,16 Apr 24,Home Travel /Subsistence,Pricing & Risk Analytics Division,Clarity Travel Ltd frmly Mawasem Ltd,         238,1.00,Business Travel 
ECGD,ECGD,16 Apr 24,Home Travel /Subsistence,Pricing & Risk Analytics Division,Clarity Travel Ltd frmly Mawasem Ltd,         238,31.30,Business Travel 
ECGD,ECGD,16 Apr 24,Home Travel /Subsistence,Pricing & Risk Analytics Division,Clarity Travel Ltd frmly Mawasem Ltd,         238,67.50,Business Travel 
ECGD,ECGD,16 Apr 24,Home Travel /Subsistence,SPoCC,Clarity Travel Ltd frmly Mawasem Ltd,         238,-151.00,Business Travel 
ECGD,ECGD,16 Apr 24,Home Travel /Subsistence,SPoCC,Clarity Travel Ltd frmly Mawasem Ltd,         238,-151.00,Business Travel 
ECGD,ECGD,16 Apr 24,Home Travel /Subsistence,SPoCC,Clarity Travel Ltd frmly Mawasem Ltd,         238,1.00,Business Travel 
ECGD,ECGD,16 Apr 24,Home Travel /Subsistence,SPoCC,Clarity Travel Ltd frmly Mawasem Ltd,         238,1.00,Business Travel 
ECGD,ECGD,16 Apr 24,Home Travel /Subsistence,SPoCC,Clarity Travel Ltd frmly Mawasem Ltd,         238,1.00,Business Travel 
ECGD,ECGD,16 Apr 24,Home Travel /Subsistence,SPoCC,Clarity Travel Ltd frmly Mawasem Ltd,         238,2.00,Business Travel 
ECGD,ECGD,16 Apr 24,Home Travel /Subsistence,SPoCC,Clarity Travel Ltd frmly Mawasem Ltd,         238,2.00,Business Travel 
ECGD,ECGD,16 Apr 24,Home Travel /Subsistence,SPoCC,Clarity Travel Ltd frmly Mawasem Ltd,         238,2.00,Business Travel 
ECGD,ECGD,16 Apr 24,Home Travel /Subsistence,SPoCC,Clarity Travel Ltd frmly Mawasem Ltd,         238,3.00,Business Travel 
ECGD,ECGD,16 Apr 24,Home Travel /Subsistence,SPoCC,Clarity Travel Ltd frmly Mawasem Ltd,         238,3.50,Business Travel 
ECGD,ECGD,16 Apr 24,Home Travel /Subsistence,SPoCC,Clarity Travel Ltd frmly Mawasem Ltd,         238,28.00,Business Travel 
ECGD,ECGD,16 Apr 24,Home Travel /Subsistence,SPoCC,Clarity Travel Ltd frmly Mawasem Ltd,         238,36.50,Business Travel 
ECGD,ECGD,16 Apr 24,Home Travel /Subsistence,SPoCC,Clarity Travel Ltd frmly Mawasem Ltd,         238,140.20,Business Travel 
ECGD,ECGD,16 Apr 24,Home Travel /Subsistence,SPoCC,Clarity Travel Ltd frmly Mawasem Ltd,         238,157.20,Business Travel 
ECGD,ECGD,16 Apr 24,Home Travel /Subsistence,SPoCC,Clarity Travel Ltd frmly Mawasem Ltd,         238,157.20,Business Travel 
ECGD,ECGD,16 Apr 24,Home Travel /Subsistence,SPoCC,Clarity Travel Ltd frmly Mawasem Ltd,         238,161.16,Business Travel 
ECGD,ECGD,16 Apr 24,Home Travel /Subsistence,SPoCC,Clarity Travel Ltd frmly Mawasem Ltd,         238,168.67,Business Travel 
ECGD,ECGD,16 Apr 24,Home Travel /Subsistence,SPoCC,Clarity Travel Ltd frmly Mawasem Ltd,         238,170.00,Business Travel 
ECGD,ECGD,16 Apr 24,Home Travel /Subsistence,SPoCC,Clarity Travel Ltd frmly Mawasem Ltd,         238,170.00,Business Travel 
ECGD,ECGD,16 Apr 24,Home Travel /Subsistence,SPoCC,Clarity Travel Ltd frmly Mawasem Ltd,         238,170.00,Business Travel 
ECGD,ECGD,16 Apr 24,Home Travel /Subsistence,SPoCC,Clarity Travel Ltd frmly Mawasem Ltd,         238,266.60,Business Travel 
ECGD,ECGD,16 Apr 24,Home Travel /Subsistence,Special Situations Division,Clarity Travel Ltd frmly Mawasem Ltd,         238,2.00,Business Travel 
ECGD,ECGD,16 Apr 24,Overseas Travel (Case Related),Business Group _ Main,Clarity Travel Ltd frmly Mawasem Ltd,         238,-136.71,Business Travel 
ECGD,ECGD,16 Apr 24,Overseas Travel (Case Related),Business Group _ Main,Clarity Travel Ltd frmly Mawasem Ltd,         238,7.00,Business Travel 
ECGD,ECGD,16 Apr 24,Overseas Travel (Case Related),Business Group _ Main,Clarity Travel Ltd frmly Mawasem Ltd,         238,67.00,Business Travel 
ECGD,ECGD,16 Apr 24,Overseas Travel (Case Related),Business Group _ Main,Clarity Travel Ltd frmly Mawasem Ltd,         238,67.00,Business Travel 
ECGD,ECGD,16 Apr 24,Overseas Travel (Case Related),Business Group _ Main,Clarity Travel Ltd frmly Mawasem Ltd,         238,"5,335.15",Business Travel 
ECGD,ECGD,16 Apr 24,Overseas Travel (Case Related),Digital and Data Division,Clarity Travel Ltd frmly Mawasem Ltd,         238,2.00,Business Travel 
ECGD,ECGD,16 Apr 24,Overseas Travel (Case Related),Digital and Data Division,Clarity Travel Ltd frmly Mawasem Ltd,         238,910.52,Business Travel 
ECGD,ECGD,16 Apr 24,Overseas Travel (Case Related),LD,Clarity Travel Ltd frmly Mawasem Ltd,         238,2.00,Business Travel 
ECGD,ECGD,16 Apr 24,Overseas Travel (Case Related),LD,Clarity Travel Ltd frmly Mawasem Ltd,         238,7.00,Business Travel 
ECGD,ECGD,16 Apr 24,Overseas Travel (Case Related),LD,Clarity Travel Ltd frmly Mawasem Ltd,         238,381.12,Business Travel 
ECGD,ECGD,16 Apr 24,Overseas Travel (Case Related),LD,Clarity Travel Ltd frmly Mawasem Ltd,         238,"5,335.15",Business Travel 
ECGD,ECGD,16 Apr 24,Overseas Travel (Case Related),Pricing & Risk Analytics Division,Clarity Travel Ltd frmly Mawasem Ltd,         238,67.00,Business Travel 
ECGD,ECGD,16 Apr 24,Overseas Travel (Case Related),Pricing & Risk Analytics Division,Clarity Travel Ltd frmly Mawasem Ltd,         238,67.00,Business Travel 
ECGD,ECGD,16 Apr 24,Overseas Travel (Case Related),Risk Approval Division,Clarity Travel Ltd frmly Mawasem Ltd,         238,7.00,Business Travel 
ECGD,ECGD,16 Apr 24,Overseas Travel (Case Related),Risk Approval Division,Clarity Travel Ltd frmly Mawasem Ltd,         238,7.00,Business Travel 
ECGD,ECGD,16 Apr 24,Overseas Travel (Case Related),Risk Approval Division,Clarity Travel Ltd frmly Mawasem Ltd,         238,"3,860.25",Business Travel 
ECGD,ECGD,16 Apr 24,Overseas Travel (Case Related),Risk Approval Division,Clarity Travel Ltd frmly Mawasem Ltd,         238,"3,880.25",Business Travel 
ECGD,ECGD,16 Apr 24,Overseas Travel (Case Related),Special Situations Division,Clarity Travel Ltd frmly Mawasem Ltd,         238,2.00,Overseas Travel subsistence
ECGD,ECGD,16 Apr 24,Overseas Travel (Case Related),Special Situations Division,Clarity Travel Ltd frmly Mawasem Ltd,         238,414.58,Overseas Travel subsistence
ECGD,ECGD,16 Apr 24,Overseas Travel/Subsistence,Business Group _ Main,Clarity Travel Ltd frmly Mawasem Ltd,         238,2.00,Business Travel 
ECGD,ECGD,16 Apr 24,Overseas Travel/Subsistence,Business Group _ Main,Clarity Travel Ltd frmly Mawasem Ltd,         238,2.00,Business Travel 
ECGD,ECGD,16 Apr 24,Overseas Travel/Subsistence,Business Group _ Main,Clarity Travel Ltd frmly Mawasem Ltd,         238,2.00,Business Travel 
ECGD,ECGD,16 Apr 24,Overseas Travel/Subsistence,Business Group _ Main,Clarity Travel Ltd frmly Mawasem Ltd,         238,2.00,Business Travel 
ECGD,ECGD,16 Apr 24,Overseas Travel/Subsistence,Business Group _ Main,Clarity Travel Ltd frmly Mawasem Ltd,         238,2.00,Business Travel 
ECGD,ECGD,16 Apr 24,Overseas Travel/Subsistence,Business Group _ Main,Clarity Travel Ltd frmly Mawasem Ltd,         238,2.00,Business Travel 
ECGD,ECGD,16 Apr 24,Overseas Travel/Subsistence,Business Group _ Main,Clarity Travel Ltd frmly Mawasem Ltd,         238,3.50,Business Travel 
ECGD,ECGD,16 Apr 24,Overseas Travel/Subsistence,Business Group _ Main,Clarity Travel Ltd frmly Mawasem Ltd,         238,7.00,Business Travel 
ECGD,ECGD,16 Apr 24,Overseas Travel/Subsistence,Business Group _ Main,Clarity Travel Ltd frmly Mawasem Ltd,         238,9.00,Business Travel 
ECGD,ECGD,16 Apr 24,Overseas Travel/Subsistence,Business Group _ Main,Clarity Travel Ltd frmly Mawasem Ltd,         238,9.00,Business Travel 
ECGD,ECGD,16 Apr 24,Overseas Travel/Subsistence,Business Group _ Main,Clarity Travel Ltd frmly Mawasem Ltd,         238,195.72,Business Travel 
ECGD,ECGD,16 Apr 24,Overseas Travel/Subsistence,Business Group _ Main,Clarity Travel Ltd frmly Mawasem Ltd,         238,306.01,Business Travel 
ECGD,ECGD,16 Apr 24,Overseas Travel/Subsistence,Business Group _ Main,Clarity Travel Ltd frmly Mawasem Ltd,         238,627.96,Business Travel 
ECGD,ECGD,16 Apr 24,Overseas Travel/Subsistence,Business Group _ Main,Clarity Travel Ltd frmly Mawasem Ltd,         238,662.84,Business Travel 
ECGD,ECGD,16 Apr 24,Overseas Travel/Subsistence,Business Group _ Main,Clarity Travel Ltd frmly Mawasem Ltd,         238,662.84,Business Travel 
ECGD,ECGD,16 Apr 24,Overseas Travel/Subsistence,Business Group _ Main,Clarity Travel Ltd frmly Mawasem Ltd,         238,662.84,Business Travel 
ECGD,ECGD,16 Apr 24,Overseas Travel/Subsistence,Business Group _ Main,Clarity Travel Ltd frmly Mawasem Ltd,         238,"3,002.46",Business Travel 
ECGD,ECGD,16 Apr 24,Overseas Travel/Subsistence,Business Group _ Main,Clarity Travel Ltd frmly Mawasem Ltd,         238,"3,810.51",Business Travel 
ECGD,ECGD,16 Apr 24,Overseas Travel/Subsistence,Business Group _ Main,Clarity Travel Ltd frmly Mawasem Ltd,         238,"4,302.79",Business Travel 
ECGD,ECGD,16 Apr 24,Overseas Travel/Subsistence,Digital and Data Division,Clarity Travel Ltd frmly Mawasem Ltd,         238,7.00,Business Travel 
ECGD,ECGD,16 Apr 24,Overseas Travel/Subsistence,Digital and Data Division,Clarity Travel Ltd frmly Mawasem Ltd,         238,7.00,Business Travel 
ECGD,ECGD,16 Apr 24,Overseas Travel/Subsistence,Digital and Data Division,Clarity Travel Ltd frmly Mawasem Ltd,         238,7.00,Business Travel 
ECGD,ECGD,16 Apr 24,Overseas Travel/Subsistence,Digital and Data Division,Clarity Travel Ltd frmly Mawasem Ltd,         238,7.00,Business Travel 
ECGD,ECGD,16 Apr 24,Overseas Travel/Subsistence,Digital and Data Division,Clarity Travel Ltd frmly Mawasem Ltd,         238,7.00,Business Travel 
ECGD,ECGD,16 Apr 24,Overseas Travel/Subsistence,Digital and Data Division,Clarity Travel Ltd frmly Mawasem Ltd,         238,7.00,Business Travel 
ECGD,ECGD,16 Apr 24,Overseas Travel/Subsistence,Digital and Data Division,Clarity Travel Ltd frmly Mawasem Ltd,         238,7.00,Business Travel 
ECGD,ECGD,16 Apr 24,Overseas Travel/Subsistence,Digital and Data Division,Clarity Travel Ltd frmly Mawasem Ltd,         238,7.00,Business Travel 
ECGD,ECGD,16 Apr 24,Overseas Travel/Subsistence,Digital and Data Division,Clarity Travel Ltd frmly Mawasem Ltd,         238,7.00,Business Travel 
ECGD,ECGD,16 Apr 24,Overseas Travel/Subsistence,Digital and Data Division,Clarity Travel Ltd frmly Mawasem Ltd,         238,75.49,Business Travel 
ECGD,ECGD,16 Apr 24,Overseas Travel/Subsistence,Digital and Data Division,Clarity Travel Ltd frmly Mawasem Ltd,         238,75.49,Business Travel 
ECGD,ECGD,16 Apr 24,Overseas Travel/Subsistence,Digital and Data Division,Clarity Travel Ltd frmly Mawasem Ltd,         238,75.49,Business Travel 
ECGD,ECGD,16 Apr 24,Overseas Travel/Subsistence,Digital and Data Division,Clarity Travel Ltd frmly Mawasem Ltd,         238,75.49,Business Travel 
ECGD,ECGD,16 Apr 24,Overseas Travel/Subsistence,Digital and Data Division,Clarity Travel Ltd frmly Mawasem Ltd,         238,143.20,Business Travel 
ECGD,ECGD,16 Apr 24,Overseas Travel/Subsistence,Digital and Data Division,Clarity Travel Ltd frmly Mawasem Ltd,         238,143.20,Business Travel 
ECGD,ECGD,16 Apr 24,Overseas Travel/Subsistence,Digital and Data Division,Clarity Travel Ltd frmly Mawasem Ltd,         238,143.20,Business Travel 
ECGD,ECGD,16 Apr 24,Overseas Travel/Subsistence,Digital and Data Division,Clarity Travel Ltd frmly Mawasem Ltd,         238,143.20,Business Travel 
ECGD,ECGD,16 Apr 24,Overseas Travel/Subsistence,Digital and Data Division,Clarity Travel Ltd frmly Mawasem Ltd,         238,"4,862.19",Business Travel 
ECGD,ECGD,16 Apr 24,Overseas Travel/Subsistence,OCCMC,Clarity Travel Ltd frmly Mawasem Ltd,         238,7.00,Business Travel 
ECGD,ECGD,16 Apr 24,Overseas Travel/Subsistence,OCCMC,Clarity Travel Ltd frmly Mawasem Ltd,         238,"4,015.25",Business Travel 
ECGD,ECGD,16 Apr 24,Overseas Travel/Subsistence,LD,Clarity Travel Ltd frmly Mawasem Ltd,         238,2.00,Business Travel 
ECGD,ECGD,16 Apr 24,Overseas Travel/Subsistence,LD,Clarity Travel Ltd frmly Mawasem Ltd,         238,224.46,Business Travel 
ECGD,ECGD,16 Apr 24,Overseas Travel/Subsistence,LD,Clarity Travel Ltd frmly Mawasem Ltd,         238,235.72,Business Travel 
ECGD,ECGD,16 Apr 24,Overseas Travel/Subsistence,LD,Clarity Travel Ltd frmly Mawasem Ltd,         238,235.72,Business Travel 
ECGD,ECGD,16 Apr 24,Overseas Travel/Subsistence,OCCMC,Clarity Travel Ltd frmly Mawasem Ltd,         238,2.00,Business Travel 
ECGD,ECGD,16 Apr 24,Overseas Travel/Subsistence,OCCMC,Clarity Travel Ltd frmly Mawasem Ltd,         238,2.00,Business Travel 
ECGD,ECGD,16 Apr 24,Overseas Travel/Subsistence,OCCMC,Clarity Travel Ltd frmly Mawasem Ltd,         238,2.00,Business Travel 
ECGD,ECGD,16 Apr 24,Overseas Travel/Subsistence,OCCMC,Clarity Travel Ltd frmly Mawasem Ltd,         238,2.00,Business Travel 
ECGD,ECGD,16 Apr 24,Overseas Travel/Subsistence,OCCMC,Clarity Travel Ltd frmly Mawasem Ltd,         238,7.00,Business Travel 
ECGD,ECGD,16 Apr 24,Overseas Travel/Subsistence,OCCMC,Clarity Travel Ltd frmly Mawasem Ltd,         238,7.00,Business Travel 
ECGD,ECGD,16 Apr 24,Overseas Travel/Subsistence,OCCMC,Clarity Travel Ltd frmly Mawasem Ltd,         238,7.00,Business Travel 
ECGD,ECGD,16 Apr 24,Overseas Travel/Subsistence,OCCMC,Clarity Travel Ltd frmly Mawasem Ltd,         238,7.00,Business Travel 
ECGD,ECGD,16 Apr 24,Overseas Travel/Subsistence,OCCMC,Clarity Travel Ltd frmly Mawasem Ltd,         238,7.00,Business Travel 
ECGD,ECGD,16 Apr 24,Overseas Travel/Subsistence,OCCMC,Clarity Travel Ltd frmly Mawasem Ltd,         238,7.00,Business Travel 
ECGD,ECGD,16 Apr 24,Overseas Travel/Subsistence,OCCMC,Clarity Travel Ltd frmly Mawasem Ltd,         238,7.00,Business Travel 
ECGD,ECGD,16 Apr 24,Overseas Travel/Subsistence,OCCMC,Clarity Travel Ltd frmly Mawasem Ltd,         238,7.00,Business Travel 
ECGD,ECGD,16 Apr 24,Overseas Travel/Subsistence,OCCMC,Clarity Travel Ltd frmly Mawasem Ltd,         238,7.00,Business Travel 
ECGD,ECGD,16 Apr 24,Overseas Travel/Subsistence,OCCMC,Clarity Travel Ltd frmly Mawasem Ltd,         238,9.00,Business Travel 
ECGD,ECGD,16 Apr 24,Overseas Travel/Subsistence,OCCMC,Clarity Travel Ltd frmly Mawasem Ltd,         238,9.00,Business Travel 
ECGD,ECGD,16 Apr 24,Overseas Travel/Subsistence,OCCMC,Clarity Travel Ltd frmly Mawasem Ltd,         238,9.00,Business Travel 
ECGD,ECGD,16 Apr 24,Overseas Travel/Subsistence,OCCMC,Clarity Travel Ltd frmly Mawasem Ltd,         238,9.00,Business Travel 
ECGD,ECGD,16 Apr 24,Overseas Travel/Subsistence,OCCMC,Clarity Travel Ltd frmly Mawasem Ltd,         238,69.10,Business Travel 
ECGD,ECGD,16 Apr 24,Overseas Travel/Subsistence,OCCMC,Clarity Travel Ltd frmly Mawasem Ltd,         238,171.62,Business Travel 
ECGD,ECGD,16 Apr 24,Overseas Travel/Subsistence,OCCMC,Clarity Travel Ltd frmly Mawasem Ltd,         238,280.97,Business Travel 
ECGD,ECGD,16 Apr 24,Overseas Travel/Subsistence,OCCMC,Clarity Travel Ltd frmly Mawasem Ltd,         238,304.08,Business Travel 
ECGD,ECGD,16 Apr 24,Overseas Travel/Subsistence,OCCMC,Clarity Travel Ltd frmly Mawasem Ltd,         238,404.12,Business Travel 
ECGD,ECGD,16 Apr 24,Overseas Travel/Subsistence,OCCMC,Clarity Travel Ltd frmly Mawasem Ltd,         238,433.78,Business Travel 
ECGD,ECGD,16 Apr 24,Overseas Travel/Subsistence,OCCMC,Clarity Travel Ltd frmly Mawasem Ltd,         238,592.03,Business Travel 
ECGD,ECGD,16 Apr 24,Overseas Travel/Subsistence,OCCMC,Clarity Travel Ltd frmly Mawasem Ltd,         238,980.00,Business Travel 
ECGD,ECGD,16 Apr 24,Overseas Travel/Subsistence,OCCMC,Clarity Travel Ltd frmly Mawasem Ltd,         238,"1,860.79",Business Travel 
ECGD,ECGD,16 Apr 24,Overseas Travel/Subsistence,OCCMC,Clarity Travel Ltd frmly Mawasem Ltd,         238,"2,745.28",Business Travel 
ECGD,ECGD,16 Apr 24,Overseas Travel/Subsistence,OCCMC,Clarity Travel Ltd frmly Mawasem Ltd,         238,"2,850.00",Business Travel 
ECGD,ECGD,16 Apr 24,Overseas Travel/Subsistence,OCCMC,Clarity Travel Ltd frmly Mawasem Ltd,         238,"3,000.89",Business Travel 
ECGD,ECGD,16 Apr 24,Overseas Travel/Subsistence,OCCMC,Clarity Travel Ltd frmly Mawasem Ltd,         238,"3,238.00",Business Travel 
ECGD,ECGD,16 Apr 24,Overseas Travel/Subsistence,OCCMC,Clarity Travel Ltd frmly Mawasem Ltd,         238,"3,452.50",Business Travel 
vomic,ECGD,16 Apr 24,Overseas Travel/Subsistence,OCCMC,Clarity Travel Ltd frmly Mawasem Ltd,         238,"4,804.45",Business Travel 
ECGD,ECGD,16 Apr 24,Overseas Travel/Subsistence,OCCMC,Clarity Travel Ltd frmly Mawasem Ltd,         238,"4,804.45",Business Travel 
ECGD,ECGD,16 Apr 24,Overseas Travel/Subsistence,OCCMC,Clarity Travel Ltd frmly Mawasem Ltd,         238,"5,803.77",Business Travel 
ECGD,ECGD,16 Apr 24,Overseas Travel/Subsistence,Risk Approval Division,Clarity Travel Ltd frmly Mawasem Ltd,         238,2.00,Business Travel 
ECGD,ECGD,16 Apr 24,Overseas Travel/Subsistence,Risk Approval Division,Clarity Travel Ltd frmly Mawasem Ltd,         238,2.00,Business Travel 
ECGD,ECGD,16 Apr 24,Overseas Travel/Subsistence,Risk Approval Division,Clarity Travel Ltd frmly Mawasem Ltd,         238,2.00,Business Travel 
ECGD,ECGD,16 Apr 24,Overseas Travel/Subsistence,Risk Approval Division,Clarity Travel Ltd frmly Mawasem Ltd,         238,374.70,Business Travel 
ECGD,ECGD,16 Apr 24,Overseas Travel/Subsistence,SPoCC,Clarity Travel Ltd frmly Mawasem Ltd,         238,-406.80,Business Travel 
ECGD,ECGD,16 Apr 24,Overseas Travel/Subsistence,SPoCC,Clarity Travel Ltd frmly Mawasem Ltd,         238,-7.00,Business Travel 
ECGD,ECGD,16 Apr 24,Overseas Travel/Subsistence,SPoCC,Clarity Travel Ltd frmly Mawasem Ltd,         238,2.00,Business Travel 
ECGD,ECGD,16 Apr 24,Overseas Travel/Subsistence,SPoCC,Clarity Travel Ltd frmly Mawasem Ltd,         238,2.00,Business Travel 
ECGD,ECGD,16 Apr 24,Overseas Travel/Subsistence,SPoCC,Clarity Travel Ltd frmly Mawasem Ltd,         238,2.00,Business Travel 
ECGD,ECGD,16 Apr 24,Overseas Travel/Subsistence,SPoCC,Clarity Travel Ltd frmly Mawasem Ltd,         238,2.00,Business Travel 
ECGD,ECGD,16 Apr 24,Overseas Travel/Subsistence,SPoCC,Clarity Travel Ltd frmly Mawasem Ltd,         238,2.00,Business Travel 
ECGD,ECGD,16 Apr 24,Overseas Travel/Subsistence,SPoCC,Clarity Travel Ltd frmly Mawasem Ltd,         238,2.00,Business Travel 
ECGD,ECGD,16 Apr 24,Overseas Travel/Subsistence,SPoCC,Clarity Travel Ltd frmly Mawasem Ltd,         238,2.00,Business Travel 
ECGD,ECGD,16 Apr 24,Overseas Travel/Subsistence,SPoCC,Clarity Travel Ltd frmly Mawasem Ltd,         238,2.00,Business Travel 
ECGD,ECGD,16 Apr 24,Overseas Travel/Subsistence,SPoCC,Clarity Travel Ltd frmly Mawasem Ltd,         238,2.00,Business Travel 
ECGD,ECGD,16 Apr 24,Overseas Travel/Subsistence,SPoCC,Clarity Travel Ltd frmly Mawasem Ltd,         238,4.00,Business Travel 
ECGD,ECGD,16 Apr 24,Overseas Travel/Subsistence,SPoCC,Clarity Travel Ltd frmly Mawasem Ltd,         238,5.50,Business Travel 
ECGD,ECGD,16 Apr 24,Overseas Travel/Subsistence,SPoCC,Clarity Travel Ltd frmly Mawasem Ltd,         238,7.00,Business Travel 
ECGD,ECGD,16 Apr 24,Overseas Travel/Subsistence,SPoCC,Clarity Travel Ltd frmly Mawasem Ltd,         238,7.00,Business Travel 
ECGD,ECGD,16 Apr 24,Overseas Travel/Subsistence,SPoCC,Clarity Travel Ltd frmly Mawasem Ltd,         238,7.00,Business Travel 
ECGD,ECGD,16 Apr 24,Overseas Travel/Subsistence,SPoCC,Clarity Travel Ltd frmly Mawasem Ltd,         238,7.00,Business Travel 
ECGD,ECGD,16 Apr 24,Overseas Travel/Subsistence,SPoCC,Clarity Travel Ltd frmly Mawasem Ltd,         238,7.00,Business Travel 
ECGD,ECGD,16 Apr 24,Overseas Travel/Subsistence,SPoCC,Clarity Travel Ltd frmly Mawasem Ltd,         238,7.00,Business Travel 
ECGD,ECGD,16 Apr 24,Overseas Travel/Subsistence,SPoCC,Clarity Travel Ltd frmly Mawasem Ltd,         238,7.00,Business Travel 
ECGD,ECGD,16 Apr 24,Overseas Travel/Subsistence,SPoCC,Clarity Travel Ltd frmly Mawasem Ltd,         238,9.00,Business Travel 
ECGD,ECGD,16 Apr 24,Overseas Travel/Subsistence,SPoCC,Clarity Travel Ltd frmly Mawasem Ltd,         238,9.00,Business Travel 
ECGD,ECGD,16 Apr 24,Overseas Travel/Subsistence,SPoCC,Clarity Travel Ltd frmly Mawasem Ltd,         238,9.00,Business Travel 
ECGD,ECGD,16 Apr 24,Overseas Travel/Subsistence,SPoCC,Clarity Travel Ltd frmly Mawasem Ltd,         238,9.00,Business Travel 
ECGD,ECGD,16 Apr 24,Overseas Travel/Subsistence,SPoCC,Clarity Travel Ltd frmly Mawasem Ltd,         238,9.00,Business Travel 
ECGD,ECGD,16 Apr 24,Overseas Travel/Subsistence,SPoCC,Clarity Travel Ltd frmly Mawasem Ltd,         238,65.75,Business Travel 
ECGD,ECGD,16 Apr 24,Overseas Travel/Subsistence,SPoCC,Clarity Travel Ltd frmly Mawasem Ltd,         238,79.00,Business Travel 
ECGD,ECGD,16 Apr 24,Overseas Travel/Subsistence,SPoCC,Clarity Travel Ltd frmly Mawasem Ltd,         238,135.60,Business Travel 
ECGD,ECGD,16 Apr 24,Overseas Travel/Subsistence,SPoCC,Clarity Travel Ltd frmly Mawasem Ltd,         238,138.00,Business Travel 
ECGD,ECGD,16 Apr 24,Overseas Travel/Subsistence,SPoCC,Clarity Travel Ltd frmly Mawasem Ltd,         238,140.94,Business Travel 
ECGD,ECGD,16 Apr 24,Overseas Travel/Subsistence,SPoCC,Clarity Travel Ltd frmly Mawasem Ltd,         238,161.32,Business Travel 
ECGD,ECGD,16 Apr 24,Overseas Travel/Subsistence,SPoCC,Clarity Travel Ltd frmly Mawasem Ltd,         238,223.00,Business Travel 
ECGD,ECGD,16 Apr 24,Overseas Travel/Subsistence,SPoCC,Clarity Travel Ltd frmly Mawasem Ltd,         238,304.08,Business Travel 
ECGD,ECGD,16 Apr 24,Overseas Travel/Subsistence,SPoCC,Clarity Travel Ltd frmly Mawasem Ltd,         238,365.04,Business Travel 
ECGD,ECGD,16 Apr 24,Overseas Travel/Subsistence,SPoCC,Clarity Travel Ltd frmly Mawasem Ltd,         238,375.92,Business Travel 
ECGD,ECGD,16 Apr 24,Overseas Travel/Subsistence,SPoCC,Clarity Travel Ltd frmly Mawasem Ltd,         238,407.80,Business Travel 
ECGD,ECGD,16 Apr 24,Overseas Travel/Subsistence,SPoCC,Clarity Travel Ltd frmly Mawasem Ltd,         238,435.58,Business Travel 
ECGD,ECGD,16 Apr 24,Overseas Travel/Subsistence,SPoCC,Clarity Travel Ltd frmly Mawasem Ltd,         238,446.34,Business Travel 
ECGD,ECGD,16 Apr 24,Overseas Travel/Subsistence,SPoCC,Clarity Travel Ltd frmly Mawasem Ltd,         238,454.76,Business Travel 
ECGD,ECGD,16 Apr 24,Overseas Travel/Subsistence,SPoCC,Clarity Travel Ltd frmly Mawasem Ltd,         238,481.20,Business Travel 
ECGD,ECGD,16 Apr 24,Overseas Travel/Subsistence,SPoCC,Clarity Travel Ltd frmly Mawasem Ltd,         238,607.68,Business Travel 
ECGD,ECGD,16 Apr 24,Overseas Travel/Subsistence,SPoCC,Clarity Travel Ltd frmly Mawasem Ltd,         238,753.08,Business Travel 
ECGD,ECGD,16 Apr 24,Overseas Travel/Subsistence,SPoCC,Clarity Travel Ltd frmly Mawasem Ltd,         238,880.00,Business Travel 
ECGD,ECGD,16 Apr 24,Overseas Travel/Subsistence,SPoCC,Clarity Travel Ltd frmly Mawasem Ltd,         238,"1,858.18",Business Travel 
ECGD,ECGD,16 Apr 24,Overseas Travel/Subsistence,SPoCC,Clarity Travel Ltd frmly Mawasem Ltd,         238,"2,777.09",Business Travel 
ECGD,ECGD,16 Apr 24,Overseas Travel/Subsistence,SPoCC,Clarity Travel Ltd frmly Mawasem Ltd,         238,"3,561.47",Business Travel 
ECGD,ECGD,16 Apr 24,Overseas Travel/Subsistence,SPoCC,Clarity Travel Ltd frmly Mawasem Ltd,         238,"3,561.47",Business Travel 
ECGD,ECGD,16 Apr 24,Overseas Travel/Subsistence,SPoCC,Clarity Travel Ltd frmly Mawasem Ltd,         238,"3,644.49",Business Travel 
ECGD,ECGD,16 Apr 24,Overseas Travel/Subsistence,Special Situations Division,Clarity Travel Ltd frmly Mawasem Ltd,         238,2.00,Business Travel 
ECGD,ECGD,16 Apr 24,Overseas Travel/Subsistence,Special Situations Division,Clarity Travel Ltd frmly Mawasem Ltd,         238,2.00,Business Travel 
ECGD,ECGD,16 Apr 24,Overseas Travel/Subsistence,Special Situations Division,Clarity Travel Ltd frmly Mawasem Ltd,         238,2.00,Business Travel 
ECGD,ECGD,16 Apr 24,Overseas Travel/Subsistence,Special Situations Division,Clarity Travel Ltd frmly Mawasem Ltd,         238,2.00,Business Travel 
ECGD,ECGD,16 Apr 24,Overseas Travel/Subsistence,Special Situations Division,Clarity Travel Ltd frmly Mawasem Ltd,         238,2.00,Business Travel 
ECGD,ECGD,16 Apr 24,Overseas Travel/Subsistence,Special Situations Division,Clarity Travel Ltd frmly Mawasem Ltd,         238,3.50,Business Travel 
ECGD,ECGD,16 Apr 24,Overseas Travel/Subsistence,Special Situations Division,Clarity Travel Ltd frmly Mawasem Ltd,         238,7.00,Business Travel 
ECGD,ECGD,16 Apr 24,Overseas Travel/Subsistence,Special Situations Division,Clarity Travel Ltd frmly Mawasem Ltd,         238,183.00,Business Travel 
ECGD,ECGD,16 Apr 24,Overseas Travel/Subsistence,Special Situations Division,Clarity Travel Ltd frmly Mawasem Ltd,         238,198.00,Business Travel 
ECGD,ECGD,16 Apr 24,Overseas Travel/Subsistence,Special Situations Division,Clarity Travel Ltd frmly Mawasem Ltd,         238,233.72,Business Travel 
ECGD,ECGD,16 Apr 24,Overseas Travel/Subsistence,Special Situations Division,Clarity Travel Ltd frmly Mawasem Ltd,         238,304.56,Business Travel 
ECGD,ECGD,16 Apr 24,Overseas Travel/Subsistence,Special Situations Division,Clarity Travel Ltd frmly Mawasem Ltd,         238,499.60,Business Travel 
ECGD,ECGD,16 Apr 24,Overseas Travel/Subsistence,Special Situations Division,Clarity Travel Ltd frmly Mawasem Ltd,         238,499.60,Business Travel 
ECGD,ECGD,11 Apr 24,Technical Services (Recoverable),Special Situations Division,Willis Ltd (USD),        1580,"136,830.96",Technical Services (Recoverable)
ECGD,ECGD,11 Apr 24,Technical Services (Recoverable),Special Situations Division,Willis Ltd (USD),        1581,"102,244.76",Technical Services (Recoverable)
ECGD,ECGD,11 Apr 24,Technical Services (Recoverable),Special Situations Division,Aergo Capital Limited USD,        1591,"4,584.23",Technical Services (Recoverable)
ECGD,ECGD,11 Apr 24,Technical Services (Recoverable),Special Situations Division,Aergo Capital Limited USD,        1591,"177,949.42",Technical Services (Recoverable)
ECGD,ECGD,11 Apr 24,Technical Services (Recoverable),Special Situations Division,Aergo Capital Limited USD,        1592,"2,767.84",Technical Services (Recoverable)
ECGD,ECGD,11 Apr 24,Technical Services (Recoverable),Special Situations Division,Aergo Capital Limited USD,        1592,"75,899.52",Technical Services (Recoverable)
ECGD,ECGD,11 Apr 24,Technical Services (Recoverable),Special Situations Division,Aergo Capital Limited USD,        1592,"97,773.64",Technical Services (Recoverable)
ECGD,ECGD,16 Apr 24,Technical Services (Recoverable),Special Situations Division,SGI Aviation Services B.V.,        1594,"70,258.23",Technical Services (Recoverable)
ECGD,ECGD,16 Apr 24,Technical Services (Recoverable),Special Situations Division,Aergo Capital Limited EUR,        1595,"23,667.62",Technical Services (Recoverable)
ECGD,ECGD,16 Apr 24,Technical Services (Recoverable),Special Situations Division,Aergo Capital Limited EUR,        1595,"24,696.66",Technical Services (Recoverable)
ECGD,ECGD,16 Apr 24,Technical Services (Recoverable),Special Situations Division,Aergo Capital Limited EUR,        1595,"28,812.76",Technical Services (Recoverable)
ECGD,ECGD,16 Apr 24,Technical Services (Recoverable),Special Situations Division,Aergo Capital Limited USD,        1597,"3,096.25",Technical Services (Recoverable)
ECGD,ECGD,16 Apr 24,Technical Services (Recoverable),Special Situations Division,Aergo Capital Limited USD,        1597,"6,410.84",Technical Services (Recoverable)
ECGD,ECGD,16 Apr 24,Technical Services (Recoverable),Special Situations Division,Aergo Capital Limited USD,        1597,"8,362.38",Technical Services (Recoverable)
ECGD,ECGD,16 Apr 24,Technical Services (Recoverable),Special Situations Division,Aergo Capital Limited USD,        1597,"13,467.48",Technical Services (Recoverable)
ECGD,ECGD,16 Apr 24,Technical Services (Recoverable),Special Situations Division,Aergo Capital Limited USD,        1597,"133,289.99",Technical Services (Recoverable)
ECGD,ECGD,16 Apr 24,Technical Services (Recoverable),Special Situations Division,Aergo Capital Limited USD,        1598,"386,866.42",Technical Services (Recoverable)
ECGD,ECGD,16 Apr 24,Technical Services (Recoverable),Special Situations Division,Aergo Capital Limited USD,        1599,"198,783.45",Technical Services (Recoverable)
ECGD,ECGD,16 Apr 24,Technical Services (Recoverable),Special Situations Division,Aergo Capital Limited USD,        1600,"341,907.53",Technical Services (Recoverable)
ECGD,ECGD,16 Apr 24,Technical Services (Recoverable),Special Situations Division,Aergo Capital Limited EUR,        1602,"506,891.00",Technical Services (Recoverable)
ECGD,ECGD,18 Apr 24,Technical Services (Recoverable),Special Situations Division,Aergo Capital Limited EUR,        1603,"141,736.46",Technical Services (Recoverable)
ECGD,ECGD,22 Apr 24,Technical Services (Recoverable),Special Situations Division,SGI Aviation Services B.V.,        1604,"210,838.49",Technical Services (Recoverable)
ECGD,ECGD,22 Apr 24,Technical Services (Recoverable),Special Situations Division,Aergo Capital Limited USD,        1606,"13,853.00",Technical Services (Recoverable)
ECGD,ECGD,22 Apr 24,Technical Services (Recoverable),Special Situations Division,Aergo Capital Limited USD,        1606,"27,143.05",Technical Services (Recoverable)
ECGD,ECGD,22 Apr 24,Technical Services (Recoverable),Special Situations Division,Aergo Capital Limited USD,        1606,"156,011.49",Technical Services (Recoverable)
ECGD,ECGD,22 Apr 24,Technical Services (Recoverable),Special Situations Division,Aergo Capital Limited USD,        1607,"332,998.65",Technical Services (Recoverable)
ECGD,ECGD,22 Apr 24,Technical Services (Recoverable),Special Situations Division,SGI Aviation Services B.V.,        1608,"64,478.53",Technical Services (Recoverable)
ECGD,ECGD,22 Apr 24,Technical Services (Recoverable),Special Situations Division,Aergo Capital Limited EUR,        1610,"71,287.81",Technical Services (Recoverable)
ECGD,ECGD,22 Apr 24,Technical Services (Recoverable),Special Situations Division,Aergo Capital Limited EUR,        1611,"18,868.99",Technical Services (Recoverable)
ECGD,ECGD,22 Apr 24,Technical Services (Recoverable),Special Situations Division,Aergo Capital Limited EUR,        1611,"18,869.00",Technical Services (Recoverable)
ECGD,ECGD,28 Apr 24,Technical Services (Recoverable),Special Situations Division,SASOF II (H) Aviation Ireland Limite,        1614,"4,126,569.24",Technical Services (Recoverable)
ECGD,ECGD,14 Apr 24,Marketing,OCCMC,Manning Gottlieb OMD,       85625,"253,172.07",Marketing and Comunication 
ECGD,ECGD,5 Apr 24,Overseas Export Managers,OCCMC,Foreign & Commonwealth Office,       85642,"90,676.42",Overseas Staff
ECGD,ECGD,5 Apr 24,Consultancy,ID,Apache iX Limited,       85648,"33,300.00",Consultancy
ECGD,ECGD,6 Apr 24,Project Agency - Specialist Cont,Change Board,BARCLAY SIMPSON INTERIM SERVICES LIM,       85650,"23,498.80",Project Contractors
ECGD,ECGD,5 Apr 24,Legal Fees transactions,LD,Grant Thornton UK LLP,       85652,"49,950.00",Technical Services 
ECGD,ECGD,6 Apr 24,Agency - Interim Managers,HRD,Alexander Mann Solutions,       85658,85.00,Interim costs
ECGD,ECGD,6 Apr 24,Agency - Interim Managers,HRD,Alexander Mann Solutions,       85658,"2,100.20",Interim Staff
ECGD,ECGD,6 Apr 24,Agency - Interim Managers,HRD,Alexander Mann Solutions,       85658,"2,625.25",Interim Staff
ECGD,ECGD,6 Apr 24,Agency - Interim Managers,HRD,Alexander Mann Solutions,       85658,"2,625.25",Interim Staff
ECGD,ECGD,6 Apr 24,Agency - Interim Managers,HRD,Alexander Mann Solutions,       85658,"3,150.30",Interim Staff
ECGD,ECGD,6 Apr 24,Agency - Interim Managers,HRD,Alexander Mann Solutions,       85658,"3,233.61",Interim Staff
ECGD,ECGD,6 Apr 24,Agency - Interim Managers,HRD,Alexander Mann Solutions,       85658,"3,592.90",Interim Staff
ECGD,ECGD,6 Apr 24,Agency - Interim Managers,HRD,Alexander Mann Solutions,       85658,"4,106.20",Interim Staff
ECGD,ECGD,6 Apr 24,Agency - Interim Managers,HRD,Alexander Mann Solutions,       85658,"4,200.40",Interim Staff
ECGD,ECGD,6 Apr 24,Agency - Interim Managers,HRD,Alexander Mann Solutions,       85658,"4,200.40",Interim Staff
ECGD,ECGD,6 Apr 24,Agency - Interim Managers,HRD,Alexander Mann Solutions,       85658,"6,159.30",Interim Staff
ECGD,ECGD,6 Apr 24,Agency - Specialist Contractors,HRD,Alexander Mann Solutions,       85658,"1,539.81",Interim Staff
ECGD,ECGD,6 Apr 24,Agency - Specialist Contractors,HRD,Alexander Mann Solutions,       85658,"1,924.80",Interim Staff
ECGD,ECGD,6 Apr 24,Agency - Specialist Contractors,HRD,Alexander Mann Solutions,       85658,"1,924.80",Interim Staff
ECGD,ECGD,6 Apr 24,Agency - Specialist Contractors,HRD,Alexander Mann Solutions,       85658,"2,053.08",Interim Staff
ECGD,ECGD,6 Apr 24,Agency - Specialist Contractors,HRD,Alexander Mann Solutions,       85658,"3,233.61",Interim Staff
ECGD,ECGD,6 Apr 24,Agency - Specialist Contractors,HRD,Alexander Mann Solutions,       85658,"3,233.61",Interim Staff
ECGD,ECGD,6 Apr 24,Agency - Specialist Contractors,HRD,Alexander Mann Solutions,       85658,"3,336.30",Interim Staff
ECGD,ECGD,6 Apr 24,Agency - Specialist Contractors,HRD,Alexander Mann Solutions,       85658,"3,386.55",Interim Staff
ECGD,ECGD,6 Apr 24,Agency - Specialist Contractors,HRD,Alexander Mann Solutions,       85658,"3,386.55",Interim Staff
ECGD,ECGD,6 Apr 24,Agency - Specialist Contractors,HRD,Alexander Mann Solutions,       85658,"3,386.55",Interim Staff
ECGD,ECGD,6 Apr 24,Agency - Specialist Contractors,HRD,Alexander Mann Solutions,       85658,"3,412.80",Interim Staff
ECGD,ECGD,6 Apr 24,Agency - Specialist Contractors,HRD,Alexander Mann Solutions,       85658,"3,412.80",Interim Staff
ECGD,ECGD,6 Apr 24,Agency - Specialist Contractors,HRD,Alexander Mann Solutions,       85658,"3,592.90",Interim Staff
ECGD,ECGD,6 Apr 24,Agency - Specialist Contractors,HRD,Alexander Mann Solutions,       85658,"3,675.35",Interim Staff
ECGD,ECGD,6 Apr 24,Agency - Specialist Contractors,HRD,Alexander Mann Solutions,       85658,"3,675.35",Interim Staff
ECGD,ECGD,6 Apr 24,Agency - Specialist Contractors,HRD,Alexander Mann Solutions,       85658,"3,721.25",Interim Staff
ECGD,ECGD,6 Apr 24,Agency - Specialist Contractors,HRD,Alexander Mann Solutions,       85658,"3,937.85",Interim Staff
ECGD,ECGD,6 Apr 24,Agency - Specialist Contractors,HRD,Alexander Mann Solutions,       85658,"3,937.85",Interim Staff
ECGD,ECGD,6 Apr 24,Agency - Temporary Staff,HRD,Alexander Mann Solutions,       85658,761.04,Interim Staff
ECGD,ECGD,6 Apr 24,Agency - Temporary Staff,HRD,Alexander Mann Solutions,       85658,873.66,Interim Staff
ECGD,ECGD,6 Apr 24,Agency - Temporary Staff,HRD,Alexander Mann Solutions,       85658,873.66,Interim Staff
ECGD,ECGD,6 Apr 24,Agency - Temporary Staff,HRD,Alexander Mann Solutions,       85658,910.57,Interim Staff
ECGD,ECGD,11 Apr 24,Marketing,OCCMC,Manning Gottlieb OMD,       85663,"47,133.34",Marketing and Comunication 
ECGD,ECGD,14 Apr 24,Marketing,OCCMC,Manning Gottlieb OMD,       85668,"259,450.76",Marketing and Comunication 
ECGD,ECGD,12 Apr 24,Consultancy,IA,Grant Thornton UK LLP,       85673,"33,885.00",Consultancy
ECGD,ECGD,6 Apr 24,Consultancy,Compliance,Ernst and Young LLP,       85675,"53,019.00",Consultancy
ECGD,ECGD,6 Apr 24,Agency - Interim Managers,HRD,Alexander Mann Solutions,       85679,"1,680.16",Interim Staff
ECGD,ECGD,6 Apr 24,Agency - Interim Managers,HRD,Alexander Mann Solutions,       85679,"1,693.83",Interim Staff
ECGD,ECGD,6 Apr 24,Agency - Interim Managers,HRD,Alexander Mann Solutions,       85679,"1,837.68",Interim Staff
ECGD,ECGD,6 Apr 24,Agency - Interim Managers,HRD,Alexander Mann Solutions,       85679,"2,100.20",Interim Staff
ECGD,ECGD,6 Apr 24,Agency - Interim Managers,HRD,Alexander Mann Solutions,       85679,"2,155.74",Interim Staff
ECGD,ECGD,6 Apr 24,Agency - Interim Managers,HRD,Alexander Mann Solutions,       85679,"2,520.24",Interim Staff
ECGD,ECGD,6 Apr 24,Agency - Interim Managers,HRD,Alexander Mann Solutions,       85679,"2,520.24",Interim Staff
ECGD,ECGD,6 Apr 24,Agency - Interim Managers,HRD,Alexander Mann Solutions,       85679,"2,823.05",Interim Staff
ECGD,ECGD,6 Apr 24,Agency - Interim Managers,HRD,Alexander Mann Solutions,       85679,"2,874.32",Interim Staff
ECGD,ECGD,6 Apr 24,Agency - Interim Managers,HRD,Alexander Mann Solutions,       85679,"3,150.30",Interim Staff
ECGD,ECGD,6 Apr 24,Agency - Interim Managers,HRD,Alexander Mann Solutions,       85679,"3,360.32",Interim Staff
ECGD,ECGD,6 Apr 24,Agency - Interim Managers,HRD,Alexander Mann Solutions,       85679,"3,360.32",Interim Staff
ECGD,ECGD,6 Apr 24,Agency - Interim Managers,HRD,Alexander Mann Solutions,       85679,"4,106.20",Interim Staff
ECGD,ECGD,6 Apr 24,Agency - Interim Managers,HRD,Alexander Mann Solutions,       85679,"4,927.44",Interim Staff
ECGD,ECGD,6 Apr 24,Agency - Specialist Contractors,HRD,Alexander Mann Solutions,       85679,"1,539.81",Interim Staff
ECGD,ECGD,6 Apr 24,Agency - Specialist Contractors,HRD,Alexander Mann Solutions,       85679,"1,539.84",Interim Staff
ECGD,ECGD,6 Apr 24,Agency - Specialist Contractors,HRD,Alexander Mann Solutions,       85679,"2,047.68",Interim Staff
ECGD,ECGD,6 Apr 24,Agency - Specialist Contractors,HRD,Alexander Mann Solutions,       85679,"2,053.08",Interim Staff
ECGD,ECGD,6 Apr 24,Agency - Specialist Contractors,HRD,Alexander Mann Solutions,       85679,"2,709.24",Interim Staff
ECGD,ECGD,6 Apr 24,Agency - Specialist Contractors,HRD,Alexander Mann Solutions,       85679,"2,709.24",Interim Staff
ECGD,ECGD,6 Apr 24,Agency - Specialist Contractors,HRD,Alexander Mann Solutions,       85679,"2,730.24",Interim Staff
ECGD,ECGD,6 Apr 24,Agency - Specialist Contractors,HRD,Alexander Mann Solutions,       85679,"2,730.24",Interim Staff
ECGD,ECGD,6 Apr 24,Agency - Specialist Contractors,HRD,Alexander Mann Solutions,       85679,"2,771.68",Interim Staff
ECGD,ECGD,6 Apr 24,Agency - Specialist Contractors,HRD,Alexander Mann Solutions,       85679,"2,874.32",Interim Staff
ECGD,ECGD,6 Apr 24,Agency - Specialist Contractors,HRD,Alexander Mann Solutions,       85679,"2,874.32",Interim Staff
ECGD,ECGD,6 Apr 24,Agency - Specialist Contractors,HRD,Alexander Mann Solutions,       85679,"2,887.20",Interim Staff
ECGD,ECGD,6 Apr 24,Agency - Specialist Contractors,HRD,Alexander Mann Solutions,       85679,"2,940.28",Interim Staff
ECGD,ECGD,6 Apr 24,Agency - Specialist Contractors,HRD,Alexander Mann Solutions,       85679,"2,940.28",Interim Staff
ECGD,ECGD,6 Apr 24,Agency - Specialist Contractors,HRD,Alexander Mann Solutions,       85679,"2,977.00",Interim Staff
ECGD,ECGD,6 Apr 24,Agency - Specialist Contractors,HRD,Alexander Mann Solutions,       85679,"3,150.28",Interim Staff
ECGD,ECGD,6 Apr 24,Agency - Specialist Contractors,HRD,Alexander Mann Solutions,       85679,"3,150.28",Interim Staff
ECGD,ECGD,6 Apr 24,Agency - Specialist Contractors,HRD,Alexander Mann Solutions,       85679,"3,150.28",Interim Staff
ECGD,ECGD,6 Apr 24,Agency - Specialist Contractors,HRD,Alexander Mann Solutions,       85679,"3,412.80",Interim Staff
ECGD,ECGD,6 Apr 24,Agency - Specialist Contractors,HRD,Alexander Mann Solutions,       85679,"3,464.60",Interim Staff
ECGD,ECGD,6 Apr 24,Agency - Specialist Contractors,HRD,Alexander Mann Solutions,       85679,"3,464.60",Interim Staff
ECGD,ECGD,6 Apr 24,Agency - Specialist Contractors,HRD,Alexander Mann Solutions,       85679,"3,464.60",Interim Staff
ECGD,ECGD,6 Apr 24,Agency - Specialist Contractors,HRD,Alexander Mann Solutions,       85679,"4,106.20",Interim Staff
ECGD,ECGD,6 Apr 24,Agency - Specialist Contractors,HRD,Alexander Mann Solutions,       85679,"4,106.20",Interim Staff
ECGD,ECGD,6 Apr 24,Agency - Temporary Staff,HRD,Alexander Mann Solutions,       85679,613.06,Interim Staff
ECGD,ECGD,6 Apr 24,Agency - Temporary Staff,HRD,Alexander Mann Solutions,       85679,738.30,Interim Staff
ECGD,ECGD,8 Apr 24,Project Agency - Specialist Cont,Change Board,Nomensa Ltd,       85681,"39,550.00",Project Contractors
ECGD,ECGD,11 Apr 24,Online costs,Pricing & Risk Analytics Division,S&P Global Limited,       85683,"43,680.00",Online costs
ECGD,ECGD,11 Apr 24,IT Software Licensing & Subscription,ID,Bureau Van Dijk Ltd,       85689,"165,000.00",IT Systems 
ECGD,ECGD,16 Apr 24,Consultancy,IA,Grant Thornton UK LLP,       85703,"36,371.50",Consultancy
ECGD,ECGD,16 Apr 24,Project Agency - Specialist Cont,Change Board,Softwire Technology Limited,       85707,"49,195.00",Project Contractors
ECGD,ECGD,16 Apr 24,Project Agency - Specialist Cont,Change Board,Softwire Technology Limited,       85708,"33,600.00",Project Contractors
ECGD,ECGD,16 Apr 24,Overseas Export Managers,OCCMC,Green Park Interim & Executive Searc,       85710,"25,070.67",Overseas Staff
ECGD,ECGD,16 Apr 24,Agency - Interim Managers,HRD,Alexander Mann Solutions,       85714,"1,680.16",Interim Staff
ECGD,ECGD,16 Apr 24,Agency - Interim Managers,HRD,Alexander Mann Solutions,       85714,"2,100.20",Interim Staff
ECGD,ECGD,16 Apr 24,Agency - Interim Managers,HRD,Alexander Mann Solutions,       85714,"2,100.20",Interim Staff
ECGD,ECGD,16 Apr 24,Agency - Interim Managers,HRD,Alexander Mann Solutions,       85714,"2,520.24",Interim Staff
ECGD,ECGD,16 Apr 24,Agency - Interim Managers,HRD,Alexander Mann Solutions,       85714,"2,520.24",Interim Staff
ECGD,ECGD,16 Apr 24,Agency - Interim Managers,HRD,Alexander Mann Solutions,       85714,"2,874.32",Interim Staff
ECGD,ECGD,16 Apr 24,Agency - Interim Managers,HRD,Alexander Mann Solutions,       85714,"3,360.32",Interim Staff
ECGD,ECGD,16 Apr 24,Agency - Interim Managers,HRD,Alexander Mann Solutions,       85714,"3,360.32",Interim Staff
ECGD,ECGD,16 Apr 24,Agency - Interim Managers,HRD,Alexander Mann Solutions,       85714,"4,927.44",Interim Staff
ECGD,ECGD,16 Apr 24,Agency - Specialist Contractors,HRD,Alexander Mann Solutions,       85714,"1,155.12",Interim Staff
ECGD,ECGD,16 Apr 24,Agency - Specialist Contractors,HRD,Alexander Mann Solutions,       85714,"1,155.12",Interim Staff
ECGD,ECGD,16 Apr 24,Agency - Specialist Contractors,HRD,Alexander Mann Solutions,       85714,"1,539.81",Interim Staff
ECGD,ECGD,16 Apr 24,Agency - Specialist Contractors,HRD,Alexander Mann Solutions,       85714,"1,539.84",Interim Staff
ECGD,ECGD,16 Apr 24,Agency - Specialist Contractors,HRD,Alexander Mann Solutions,       85714,"2,047.68",Interim Staff
ECGD,ECGD,16 Apr 24,Agency - Specialist Contractors,HRD,Alexander Mann Solutions,       85714,"2,047.68",Interim Staff
ECGD,ECGD,16 Apr 24,Agency - Specialist Contractors,HRD,Alexander Mann Solutions,       85714,"2,053.08",Interim Staff
ECGD,ECGD,16 Apr 24,Agency - Specialist Contractors,HRD,Alexander Mann Solutions,       85714,"2,709.24",Interim Staff
ECGD,ECGD,16 Apr 24,Agency - Specialist Contractors,HRD,Alexander Mann Solutions,       85714,"2,709.24",Interim Staff
ECGD,ECGD,16 Apr 24,Agency - Specialist Contractors,HRD,Alexander Mann Solutions,       85714,"2,730.24",Interim Staff
ECGD,ECGD,16 Apr 24,Agency - Specialist Contractors,HRD,Alexander Mann Solutions,       85714,"2,874.32",Interim Staff
ECGD,ECGD,16 Apr 24,Agency - Specialist Contractors,HRD,Alexander Mann Solutions,       85714,"2,874.32",Interim Staff
ECGD,ECGD,16 Apr 24,Agency - Specialist Contractors,HRD,Alexander Mann Solutions,       85714,"2,874.32",Interim Staff
ECGD,ECGD,16 Apr 24,Agency - Specialist Contractors,HRD,Alexander Mann Solutions,       85714,"2,940.28",Interim Staff
ECGD,ECGD,16 Apr 24,Agency - Specialist Contractors,HRD,Alexander Mann Solutions,       85714,"2,940.28",Interim Staff
ECGD,ECGD,16 Apr 24,Agency - Specialist Contractors,HRD,Alexander Mann Solutions,       85714,"2,940.28",Interim Staff
ECGD,ECGD,16 Apr 24,Agency - Specialist Contractors,HRD,Alexander Mann Solutions,       85714,"2,940.28",Interim Staff
ECGD,ECGD,16 Apr 24,Agency - Specialist Contractors,HRD,Alexander Mann Solutions,       85714,"2,940.28",Interim Staff
ECGD,ECGD,16 Apr 24,Agency - Specialist Contractors,HRD,Alexander Mann Solutions,       85714,"2,977.00",Interim Staff
ECGD,ECGD,16 Apr 24,Agency - Specialist Contractors,HRD,Alexander Mann Solutions,       85714,"3,150.28",Interim Staff
ECGD,ECGD,16 Apr 24,Agency - Specialist Contractors,HRD,Alexander Mann Solutions,       85714,"3,150.28",Interim Staff
ECGD,ECGD,16 Apr 24,Agency - Specialist Contractors,HRD,Alexander Mann Solutions,       85714,"3,849.60",Interim Staff
ECGD,ECGD,16 Apr 24,Agency - Temporary Staff,HRD,Alexander Mann Solutions,       85714,613.06,Interim Staff
ECGD,ECGD,16 Apr 24,Agency - Temporary Staff,HRD,Alexander Mann Solutions,       85714,726.00,Interim Staff
ECGD,ECGD,16 Apr 24,Agency - Temporary Staff,HRD,Alexander Mann Solutions,       85714,738.30,Interim Staff
ECGD,ECGD,16 Apr 24,Agency - Temporary Staff,HRD,Alexander Mann Solutions,       85714,738.30,Interim Staff
ECGD,ECGD,17 Apr 24,Consultancy,Compliance,Ernst and Young LLP,       85715,"24,400.00",Consultancy
ECGD,ECGD,18 Apr 24,IT Managed Services,ID,Risual Ltd,       85724,"113,427.85",IT Systems 
ECGD,ECGD,22 Apr 24,Agency - Interim Managers,HRD,Alexander Mann Solutions,       85726,"1,129.22",Interim Staff
ECGD,ECGD,22 Apr 24,Agency - Interim Managers,HRD,Alexander Mann Solutions,       85726,"2,100.20",Interim Staff
ECGD,ECGD,22 Apr 24,Agency - Interim Managers,HRD,Alexander Mann Solutions,       85726,"2,625.25",Interim Staff
ECGD,ECGD,22 Apr 24,Agency - Interim Managers,HRD,Alexander Mann Solutions,       85726,"2,625.25",Interim Staff
ECGD,ECGD,22 Apr 24,Agency - Interim Managers,HRD,Alexander Mann Solutions,       85726,"2,874.32",Interim Staff
ECGD,ECGD,22 Apr 24,Agency - Interim Managers,HRD,Alexander Mann Solutions,       85726,"3,150.30",Interim Staff
ECGD,ECGD,22 Apr 24,Agency - Interim Managers,HRD,Alexander Mann Solutions,       85726,"3,360.32",Interim Staff
ECGD,ECGD,22 Apr 24,Agency - Interim Managers,HRD,Alexander Mann Solutions,       85726,"3,592.90",Interim Staff
ECGD,ECGD,22 Apr 24,Agency - Interim Managers,HRD,Alexander Mann Solutions,       85726,"3,592.90",Interim Staff
ECGD,ECGD,22 Apr 24,Agency - Interim Managers,HRD,Alexander Mann Solutions,       85726,"3,780.36",Interim Staff
ECGD,ECGD,22 Apr 24,Agency - Interim Managers,HRD,Alexander Mann Solutions,       85726,"6,159.30",Interim Staff
ECGD,ECGD,22 Apr 24,Agency - Specialist Contractors,HRD,Alexander Mann Solutions,       85726,"1,437.16",Interim Staff
ECGD,ECGD,22 Apr 24,Agency - Specialist Contractors,HRD,Alexander Mann Solutions,       85726,"1,443.90",Interim Staff
ECGD,ECGD,22 Apr 24,Agency - Specialist Contractors,HRD,Alexander Mann Solutions,       85726,"1,539.84",Interim Staff
ECGD,ECGD,22 Apr 24,Agency - Specialist Contractors,HRD,Alexander Mann Solutions,       85726,"2,362.71",Interim Staff
ECGD,ECGD,22 Apr 24,Agency - Specialist Contractors,HRD,Alexander Mann Solutions,       85726,"2,566.35",Interim Staff
ECGD,ECGD,22 Apr 24,Agency - Specialist Contractors,HRD,Alexander Mann Solutions,       85726,"2,874.32",Interim Staff
ECGD,ECGD,22 Apr 24,Agency - Specialist Contractors,HRD,Alexander Mann Solutions,       85726,"3,150.28",Interim Staff
ECGD,ECGD,22 Apr 24,Agency - Specialist Contractors,HRD,Alexander Mann Solutions,       85726,"3,150.28",Interim Staff
ECGD,ECGD,22 Apr 24,Agency - Specialist Contractors,HRD,Alexander Mann Solutions,       85726,"3,386.55",Interim Staff
ECGD,ECGD,22 Apr 24,Agency - Specialist Contractors,HRD,Alexander Mann Solutions,       85726,"3,386.55",Interim Staff
ECGD,ECGD,22 Apr 24,Agency - Specialist Contractors,HRD,Alexander Mann Solutions,       85726,"3,412.80",Interim Staff
ECGD,ECGD,22 Apr 24,Agency - Specialist Contractors,HRD,Alexander Mann Solutions,       85726,"3,412.80",Interim Staff
ECGD,ECGD,22 Apr 24,Agency - Specialist Contractors,HRD,Alexander Mann Solutions,       85726,"3,592.90",Interim Staff
ECGD,ECGD,22 Apr 24,Agency - Specialist Contractors,HRD,Alexander Mann Solutions,       85726,"3,675.35",Interim Staff
ECGD,ECGD,22 Apr 24,Agency - Specialist Contractors,HRD,Alexander Mann Solutions,       85726,"3,675.35",Interim Staff
ECGD,ECGD,22 Apr 24,Agency - Specialist Contractors,HRD,Alexander Mann Solutions,       85726,"3,675.35",Interim Staff
ECGD,ECGD,22 Apr 24,Agency - Specialist Contractors,HRD,Alexander Mann Solutions,       85726,"3,849.60",Interim Staff
ECGD,ECGD,22 Apr 24,Agency - Temporary Staff,HRD,Alexander Mann Solutions,       85726,541.42,Interim Staff
ECGD,ECGD,22 Apr 24,Agency - Temporary Staff,HRD,Alexander Mann Solutions,       85726,761.04,Interim Staff
ECGD,ECGD,22 Apr 24,Agency - Temporary Staff,HRD,Alexander Mann Solutions,       85726,873.66,Interim Staff
ECGD,ECGD,22 Apr 24,Consultancy,SPoCC,MCC Economics Ltd,       85729,"39,375.00",Consultancy
ECGD,ECGD,24 Apr 24,Marketing,OCCMC,Wavemaker Limited,       85753,"54,431.39",Marketing and Comunication 
ECGD,ECGD,28 Apr 24,Project Agency - Specialist Cont,Change Board,BARCLAY SIMPSON INTERIM SERVICES LIM,       85757,"21,148.92",Project Contractors
ECGD,ECGD,28 Apr 24,IT Software Licensing & Subscription,ID,Bytes Software Services Ltd,       85761,"50,296.82",IT Systems 
ECGD,ECGD,25 Apr 24,IT Software Licensing & Subscription,ID,Halo Service Solutions Ltd,       85762,"33,000.00",IT Systems 
ECGD,ECGD,28 Apr 24,IT Software Licensing & Subscription,ID,Fidelity National Info Services,       85763,"28,931.84",IT Systems 
ECGD,ECGD,28 Apr 24,IT Software Licensing & Subscription,ID,Fidelity National Info Services,       85763,"92,581.90",IT Systems 
ECGD,ECGD,29 Apr 24,Agency - Interim Managers,HRD,Alexander Mann Solutions,       85766,"2,625.25",Interim Staff
ECGD,ECGD,29 Apr 24,Agency - Interim Managers,HRD,Alexander Mann Solutions,       85766,"3,150.30",Interim Staff
ECGD,ECGD,29 Apr 24,Agency - Interim Managers,HRD,Alexander Mann Solutions,       85766,"3,150.30",Interim Staff
ECGD,ECGD,29 Apr 24,Agency - Interim Managers,HRD,Alexander Mann Solutions,       85766,"3,150.30",Interim Staff
ECGD,ECGD,29 Apr 24,Agency - Interim Managers,HRD,Alexander Mann Solutions,       85766,"3,592.90",Interim Staff
ECGD,ECGD,29 Apr 24,Agency - Interim Managers,HRD,Alexander Mann Solutions,       85766,"3,592.90",Interim Staff
ECGD,ECGD,29 Apr 24,Agency - Interim Managers,HRD,Alexander Mann Solutions,       85766,"4,200.40",Interim Staff
ECGD,ECGD,29 Apr 24,Agency - Interim Managers,HRD,Alexander Mann Solutions,       85766,"4,200.40",Interim Staff
ECGD,ECGD,29 Apr 24,Agency - Interim Managers,HRD,Alexander Mann Solutions,       85766,"6,159.30",Interim Staff
ECGD,ECGD,29 Apr 24,Agency - Specialist Contractors,HRD,Alexander Mann Solutions,       85766,"1,443.90",Interim Staff
ECGD,ECGD,29 Apr 24,Agency - Specialist Contractors,HRD,Alexander Mann Solutions,       85766,"1,539.81",Interim Staff
ECGD,ECGD,29 Apr 24,Agency - Specialist Contractors,HRD,Alexander Mann Solutions,       85766,"1,924.80",Interim Staff
ECGD,ECGD,29 Apr 24,Agency - Specialist Contractors,HRD,Alexander Mann Solutions,       85766,"2,232.75",Interim Staff
ECGD,ECGD,29 Apr 24,Agency - Specialist Contractors,HRD,Alexander Mann Solutions,       85766,"2,399.59",Interim Staff
ECGD,ECGD,29 Apr 24,Agency - Specialist Contractors,HRD,Alexander Mann Solutions,       85766,"2,771.68",Interim Staff
ECGD,ECGD,29 Apr 24,Agency - Specialist Contractors,HRD,Alexander Mann Solutions,       85766,"3,071.52",Interim Staff
ECGD,ECGD,29 Apr 24,Agency - Specialist Contractors,HRD,Alexander Mann Solutions,       85766,"3,233.61",Interim Staff
ECGD,ECGD,29 Apr 24,Agency - Specialist Contractors,HRD,Alexander Mann Solutions,       85766,"3,386.55",Interim Staff
ECGD,ECGD,29 Apr 24,Agency - Specialist Contractors,HRD,Alexander Mann Solutions,       85766,"3,386.55",Interim Staff
ECGD,ECGD,29 Apr 24,Agency - Specialist Contractors,HRD,Alexander Mann Solutions,       85766,"3,412.80",Interim Staff
ECGD,ECGD,29 Apr 24,Agency - Specialist Contractors,HRD,Alexander Mann Solutions,       85766,"3,412.80",Interim Staff
ECGD,ECGD,29 Apr 24,Agency - Specialist Contractors,HRD,Alexander Mann Solutions,       85766,"3,412.80",Interim Staff
ECGD,ECGD,29 Apr 24,Agency - Specialist Contractors,HRD,Alexander Mann Solutions,       85766,"3,464.60",Interim Staff
ECGD,ECGD,29 Apr 24,Agency - Specialist Contractors,HRD,Alexander Mann Solutions,       85766,"3,592.90",Interim Staff
ECGD,ECGD,29 Apr 24,Agency - Specialist Contractors,HRD,Alexander Mann Solutions,       85766,"3,675.35",Interim Staff
ECGD,ECGD,29 Apr 24,Agency - Specialist Contractors,HRD,Alexander Mann Solutions,       85766,"3,675.35",Interim Staff
ECGD,ECGD,29 Apr 24,Agency - Specialist Contractors,HRD,Alexander Mann Solutions,       85766,"3,675.35",Interim Staff
ECGD,ECGD,29 Apr 24,Agency - Specialist Contractors,HRD,Alexander Mann Solutions,       85766,"3,675.35",Interim Staff
ECGD,ECGD,29 Apr 24,Agency - Specialist Contractors,HRD,Alexander Mann Solutions,       85766,"3,675.35",Interim Staff
ECGD,ECGD,29 Apr 24,Agency - Specialist Contractors,HRD,Alexander Mann Solutions,       85766,"3,721.25",Interim Staff
ECGD,ECGD,29 Apr 24,Agency - Specialist Contractors,HRD,Alexander Mann Solutions,       85766,"3,937.85",Interim Staff
ECGD,ECGD,29 Apr 24,Agency - Specialist Contractors,HRD,Alexander Mann Solutions,       85766,"3,937.85",Interim Staff
ECGD,ECGD,29 Apr 24,Agency - Specialist Contractors,HRD,Alexander Mann Solutions,       85766,"3,937.85",Interim Staff
ECGD,ECGD,29 Apr 24,Agency - Specialist Contractors,HRD,Alexander Mann Solutions,       85766,"3,937.85",Interim Staff
ECGD,ECGD,29 Apr 24,Agency - Specialist Contractors,HRD,Alexander Mann Solutions,       85766,"4,234.56",Interim Staff
ECGD,ECGD,29 Apr 24,Agency - Temporary Staff,HRD,Alexander Mann Solutions,       85766,23.00,Interim Staff
ECGD,ECGD,29 Apr 24,Agency - Temporary Staff,HRD,Alexander Mann Solutions,       85766,726.00,Interim Staff
ECGD,ECGD,29 Apr 24,Agency - Temporary Staff,HRD,Alexander Mann Solutions,       85766,761.04,Interim Staff
ECGD,ECGD,29 Apr 24,Agency - Temporary Staff,HRD,Alexander Mann Solutions,       85766,873.66,Interim Staff
ECGD,ECGD,28 Apr 24,IT Cloud and Hosting,ID,Bytes Software Services Ltd,       85767,"60,918.83",IT Systems 
ECGD,ECGD,29 Apr 24,Project Consultancy Costs,Change Board,KPMG,       85772,"128,733.00",Project Consultancy
ECGD,ECGD,30 Apr 24,Shared Services Costs,HRD,Cabinet Office,       85780,"165,559.23",Employment cost 
ECGD,ECGD,30 Apr 24,Overseas Export Managers,OCCMC,Foreign & Commonwealth Office,       85781,"95,459.07",Overseas Staff
ECGD,ECGD,30 Apr 24,Overseas Export Managers,OCCMC,Foreign & Commonwealth Office,       85783,"25,999.48",Overseas Staff
ECGD,ECGD,30 Apr 24,Overseas Export Managers,OCCMC,Foreign & Commonwealth Office,       85784,"27,372.99",Overseas Staff
ECGD,ECGD,30 Apr 24,Overseas Export Managers,OCCMC,Foreign & Commonwealth Office,       85785,"113,941.22",Overseas Staff
ECGD,ECGD,30 Apr 24,Overseas Export Managers,OCCMC,Foreign & Commonwealth Office,       85786,"5,248.88",Overseas Staff
ECGD,ECGD,30 Apr 24,Overseas Export Managers,OCCMC,Foreign & Commonwealth Office,       85786,"99,620.57",Overseas Staff
